{"text_format":"1","workbook":"xlsx","n_sheets":1,"sheets":["ГРАФИК К.П.СЕНТЯБРЬ 2020  "],"not_rendered":{"charts":0,"images":0,"macros":1,"external_links":5,"defined_names":38,"comments":0,"pivot_tables":0},"unopened":[],"bounds":{"document_bytes":16777216,"sheet_cells":100000,"rows_first":2000,"rows_last":500,"rows_between":2000,"halvings":0,"cell_chars":16384,"cell_head_chars":4096},"cells_cut":0,"cells_raw":0,"read":"whole","date_system":"1900"}

{"sheet":"ГРАФИК К.П.СЕНТЯБРЬ 2020  ","index":0,"n_rows":94,"n_cols":257,"rows_kept":94,"cut":false,"hidden":false,"merged":[[73,114,77,232],[70,159,71,220],[82,166,83,227],[87,173,88,234],[93,170,94,231],[4,241,4,242],[7,0,7,76],[11,210,11,227],[11,235,12,235],[12,190,12,198],[12,200,12,209],[12,211,12,219],[0,241,0,242],[1,0,1,2],[1,241,1,242],[2,0,2,2],[2,241,2,242],[3,0,3,2],[3,241,3,242],[8,24,9,170],[11,24,12,170],[23,64,24,69],[23,70,24,75],[23,76,24,81],[23,82,24,87],[23,88,24,93],[23,94,24,99],[13,24,13,170],[15,24,15,170],[22,250,22,254],[23,0,24,4],[23,5,24,22],[23,23,24,27],[23,28,24,33],[23,34,24,39],[23,40,24,45],[23,46,24,51],[23,52,24,57],[23,58,24,63],[16,250,16,254],[19,0,19,227],[19,250,19,254],[20,0,20,227],[20,250,20,254],[21,0,21,227],[21,250,21,254],[16,22,16,171],[17,24,17,171],[18,22,18,171],[25,76,25,81],[25,82,25,87],[25,5,25,22],[25,24,25,27],[25,28,25,33],[25,34,25,39],[25,40,25,45],[25,46,25,51],[23,208,24,213],[23,214,23,232],[23,233,23,234],[23,250,23,254],[24,214,24,228],[24,250,24,254],[23,172,24,177],[23,178,24,183],[23,184,24,189],[23,190,24,195],[23,196,24,201],[23,202,24,207],[23,136,24,141],[23,142,24,147],[23,148,24,153],[23,154,24,159],[23,160,24,165],[23,166,24,171],[23,100,24,105],[23,106,24,111],[23,112,24,117],[23,118,24,123],[23,124,24,129],[23,130,24,135],[25,196,25,201],[25,202,25,207],[25,208,25,213],[25,214,25,220],[26,0,31,4],[26,5,31,22],[26,23,27,27],[26,28,26,33],[26,34,26,39],[26,40,26,45],[25,160,25,165],[25,166,25,171],[25,172,25,177],[25,178,25,183],[25,184,25,189],[25,190,25,195],[25,124,25,129],[25,130,25,135],[25,136,25,141],[25,142,25,147],[25,148,25,153],[25,154,25,159],[25,88,25,93],[25,94,25,99],[25,100,25,105],[25,106,25,111],[25,112,25,117],[25,118,25,123],[25,52,25,57],[25,58,25,63],[25,64,25,69],[25,70,25,75],[26,118,26,123],[26,124,26,129],[26,130,26,135],[26,136,26,141],[26,142,26,147],[26,148,26,153],[26,82,26,87],[26,88,26,93],[26,94,26,99],[26,100,26,105],[26,106,26,111],[26,112,26,117],[26,46,26,51],[26,52,26,57],[26,58,26,63],[26,64,26,69],[26,70,26,75],[26,76,26,81],[27,82,27,87],[27,88,27,93],[27,94,27,99],[27,100,27,105],[27,106,27,111],[27,112,27,117],[26,250,26,254],[27,28,27,33],[27,34,27,39],[27,40,27,45],[27,46,27,51],[27,52,27,57],[27,58,27,63],[27,64,27,69],[27,70,27,75],[27,76,27,81],[26,190,26,195],[26,196,26,201],[26,202,26,207],[26,208,26,213],[26,214,27,220],[26,221,26,228],[27,190,27,195],[27,196,27,201],[27,202,27,207],[27,208,27,213],[26,154,26,159],[26,160,26,165],[26,166,26,171],[26,172,26,177],[26,178,26,183],[26,184,26,189],[28,124,28,129],[28,130,28,135],[28,136,28,141],[28,142,28,147],[28,76,28,81],[28,82,28,87],[28,88,28,93],[28,94,28,99],[28,100,28,105],[28,106,28,111],[27,250,27,254],[28,23,28,27],[28,28,28,33],[28,34,28,39],[28,40,28,45],[28,46,28,51],[28,52,28,57],[28,58,28,63],[28,64,28,69],[28,70,28,75],[27,154,27,159],[27,160,27,165],[27,166,27,171],[27,172,27,177],[27,178,27,183],[27,184,27,189],[27,118,27,123],[27,124,27,129],[27,130,27,135],[27,136,27,141],[27,142,27,147],[27,148,27,153],[29,130,29,135],[29,136,29,141],[29,70,29,75],[29,76,29,81],[29,82,29,87],[29,88,29,93],[29,94,29,99],[29,100,29,105],[28,221,29,228],[28,250,28,254],[29,23,29,27],[29,28,29,33],[29,34,29,39],[29,40,29,45],[29,46,29,51],[29,52,29,57],[29,58,29,63],[29,64,29,69],[28,184,28,189],[28,190,28,195],[28,196,28,201],[28,202,28,207],[28,208,28,213],[28,214,29,220],[28,148,28,153],[28,154,28,159],[28,160,28,165],[28,166,28,171],[28,172,28,177],[28,178,28,183],[28,112,28,117],[28,118,28,123],[30,76,30,81],[30,82,30,87],[30,88,30,93],[30,94,30,99],[30,100,30,105],[30,106,30,111],[29,250,29,254],[30,23,31,27],[30,28,30,33],[30,34,30,39],[30,40,30,45],[30,46,30,51],[30,52,30,57],[30,58,30,63],[30,64,30,69],[30,70,30,75],[29,178,29,183],[29,184,29,189],[29,190,29,195],[29,196,29,201],[29,202,29,207],[29,208,29,213],[29,142,29,147],[29,148,29,153],[29,154,29,159],[29,160,29,165],[29,166,29,171],[29,172,29,177],[29,106,29,111],[29,112,29,117],[29,118,29,123],[29,124,29,129],[30,221,31,228],[30,250,30,254],[31,28,31,33],[31,34,31,39],[31,40,31,45],[31,46,31,51],[31,52,31,57],[31,58,31,63],[31,64,31,69],[31,70,31,75],[30,184,30,189],[30,190,30,195],[30,196,30,201],[30,202,30,207],[30,208,30,213],[30,214,31,220],[31,184,31,189],[31,190,31,195],[31,196,31,201],[31,202,31,207],[30,148,30,153],[30,154,30,159],[30,160,30,165],[30,166,30,171],[30,172,30,177],[30,178,30,183],[30,112,30,117],[30,118,30,123],[30,124,30,129],[30,130,30,135],[30,136,30,141],[30,142,30,147],[32,94,32,99],[31,208,31,213],[32,1,37,4],[32,5,37,21],[32,24,33,27],[32,28,32,33],[32,34,32,39],[32,40,32,45],[32,46,32,51],[32,52,32,57],[32,58,32,63],[31,148,31,153],[31,154,31,159],[31,160,31,165],[31,166,31,171],[31,172,31,177],[31,178,31,183],[31,112,31,117],[31,118,31,123],[31,124,31,129],[31,130,31,135],[31,136,31,141],[31,142,31,147],[31,76,31,81],[31,82,31,87],[31,88,31,93],[31,94,31,99],[31,100,31,105],[31,106,31,111],[32,208,32,213],[34,24,34,27],[34,28,34,33],[32,214,33,220],[32,221,32,228],[33,28,33,33],[33,34,33,39],[33,40,33,45],[33,46,33,51],[33,52,33,57],[33,58,33,63],[33,64,33,69],[32,172,32,177],[32,178,32,183],[32,184,32,189],[32,190,32,195],[32,196,32,201],[32,202,32,207],[32,136,32,141],[32,142,32,147],[32,148,32,153],[32,154,32,159],[32,160,32,165],[32,166,32,171],[32,100,32,105],[32,106,32,111],[32,112,32,117],[32,118,32,123],[32,124,32,129],[32,130,32,135],[32,64,32,69],[32,70,32,75],[32,76,32,81],[32,82,32,87],[32,88,32,93],[34,34,34,39],[34,40,34,45],[34,46,34,51],[34,52,34,57],[33,178,33,183],[33,184,33,189],[33,190,33,195],[33,196,33,201],[33,202,33,207],[33,208,33,213],[33,142,33,147],[33,148,33,153],[33,154,33,159],[33,160,33,165],[33,166,33,171],[33,172,33,177],[33,106,33,111],[33,112,33,117],[33,118,33,123],[33,124,33,129],[33,130,33,135],[33,136,33,141],[33,70,33,75],[33,76,33,81],[33,82,33,87],[33,88,33,93],[33,94,33,99],[33,100,33,105],[34,208,34,213],[34,214,35,220],[34,221,35,228],[35,24,35,27],[35,28,35,33],[35,34,35,39],[35,40,35,45],[35,46,35,51],[35,52,35,57],[34,166,34,171],[34,172,34,177],[34,178,34,183],[34,184,34,189],[34,190,34,195],[34,196,34,201],[34,130,34,135],[34,136,34,141],[34,142,34,147],[34,148,34,153],[34,154,34,159],[34,160,34,165],[34,94,34,99],[34,100,34,105],[34,106,34,111],[34,112,34,117],[34,118,34,123],[34,124,34,129],[34,58,34,63],[34,64,34,69],[34,70,34,75],[34,76,34,81],[34,82,34,87],[35,142,35,147],[35,148,35,153],[35,154,35,159],[35,160,35,165],[35,94,35,99],[35,100,35,105],[35,106,35,111],[35,112,35,117],[35,118,35,123],[35,124,35,129],[35,58,35,63],[35,64,35,69],[35,70,35,75],[35,76,35,81],[35,82,35,87],[35,88,35,93],[34,202,34,207],[34,88,34,93],[36,166,37,171],[36,172,37,177],[36,106,37,111],[36,112,37,117],[36,118,37,123],[36,124,37,129],[36,130,37,135],[36,136,37,141],[36,70,37,75],[36,76,37,81],[36,82,37,86],[36,88,37,93],[36,94,37,99],[36,100,37,105],[35,202,35,207],[35,208,35,213],[36,24,37,27],[36,28,37,33],[36,34,37,39],[36,40,37,45],[36,46,37,51],[36,52,37,56],[36,58,37,63],[36,64,37,69],[35,166,35,171],[35,172,35,177],[35,178,35,183],[35,184,35,189],[35,190,35,195],[35,196,35,201],[35,130,35,135],[35,136,35,141],[38,94,38,99],[38,100,38,105],[38,106,38,111],[38,112,38,117],[38,118,38,123],[38,124,38,129],[38,58,38,63],[38,64,38,69],[38,70,38,75],[38,76,38,81],[38,82,38,87],[38,88,38,93],[36,214,37,220],[36,221,37,228],[38,1,43,4],[38,5,43,22],[38,23,39,27],[38,28,38,33],[38,34,38,39],[38,40,38,45],[38,46,38,51],[38,52,38,57],[36,178,37,183],[36,184,37,189],[36,190,37,195],[36,196,37,201],[36,202,37,207],[36,208,37,213],[36,142,37,147],[36,148,37,153],[36,154,37,159],[36,160,37,165],[39,112,39,117],[39,118,39,123],[39,124,39,129],[39,130,39,135],[39,64,39,69],[39,70,39,75],[39,76,39,81],[39,82,39,87],[39,88,39,93],[39,94,39,99],[38,202,38,207],[38,208,38,213],[38,214,39,220],[38,221,38,228],[39,28,39,33],[39,34,39,39],[39,40,39,45],[39,46,39,51],[39,52,39,57],[39,58,39,63],[38,166,38,171],[38,172,38,177],[38,178,38,183],[38,184,38,189],[38,190,38,195],[38,196,38,201],[38,130,38,135],[38,136,38,141],[38,142,38,147],[38,148,38,153],[38,154,38,159],[38,160,38,165],[40,136,40,141],[40,142,40,147],[40,76,40,81],[40,82,40,87],[40,88,40,93],[40,94,40,99],[40,100,40,105],[40,106,40,111],[39,208,39,213],[40,23,40,27],[40,28,40,33],[40,34,40,39],[40,40,40,45],[40,46,40,51],[40,52,40,57],[40,58,40,63],[40,64,40,69],[40,70,40,75],[39,172,39,177],[39,178,39,183],[39,184,39,189],[39,190,39,195],[39,196,39,201],[39,202,39,207],[39,136,39,141],[39,142,39,147],[39,148,39,153],[39,154,39,159],[39,160,39,165],[39,166,39,171],[39,100,39,105],[39,106,39,111],[41,100,41,105],[41,106,41,111],[40,221,41,228],[41,23,41,27],[41,28,41,33],[41,34,41,39],[41,40,41,45],[41,46,41,51],[41,52,41,57],[41,58,41,63],[41,64,41,69],[41,70,41,75],[40,184,40,189],[40,190,40,195],[40,196,40,201],[40,202,40,207],[40,208,40,213],[40,214,41,220],[41,184,41,189],[41,190,41,195],[41,196,41,201],[41,202,41,207],[40,148,40,153],[40,154,40,159],[40,160,40,165],[40,166,40,171],[40,172,40,177],[40,178,40,183],[40,112,40,117],[40,118,40,123],[40,124,40,129],[40,130,40,135],[42,76,42,81],[42,82,42,87],[42,88,42,93],[42,94,42,99],[42,100,42,105],[42,106,42,111],[41,208,41,213],[42,23,43,27],[42,28,42,33],[42,34,42,39],[42,40,42,45],[42,46,42,51],[42,52,42,57],[42,58,42,63],[42,64,42,69],[42,70,42,75],[41,148,41,153],[41,154,41,159],[41,160,41,165],[41,166,41,171],[41,172,41,177],[41,178,41,183],[41,112,41,117],[41,118,41,123],[41,124,41,129],[41,130,41,135],[41,136,41,141],[41,142,41,147],[41,76,41,81],[41,82,41,87],[41,88,41,93],[41,94,41,99],[42,221,42,228],[43,28,43,33],[43,34,43,39],[43,40,43,45],[43,46,43,51],[43,52,43,57],[43,58,43,63],[43,64,43,69],[43,70,43,75],[43,76,43,81],[42,184,42,189],[42,190,42,195],[42,196,42,201],[42,202,42,207],[42,208,42,213],[42,214,43,220],[43,190,43,195],[43,196,43,201],[43,202,43,207],[43,208,43,213],[42,148,42,153],[42,154,42,159],[42,160,42,165],[42,166,42,171],[42,172,42,177],[42,178,42,183],[42,112,42,117],[42,118,42,123],[42,124,42,129],[42,130,42,135],[42,136,42,141],[42,142,42,147],[43,154,43,159],[43,160,43,165],[43,166,43,171],[43,172,43,177],[43,178,43,183],[43,184,43,189],[43,118,43,123],[43,124,43,129],[43,130,43,135],[43,136,43,141],[43,142,43,147],[43,148,43,153],[43,82,43,87],[43,88,43,93],[43,94,43,99],[43,100,43,105],[43,106,43,111],[43,112,43,117],[44,82,44,87],[44,88,44,93],[44,94,44,99],[44,100,44,105],[44,106,44,111],[44,112,44,117],[44,46,44,51],[44,52,44,57],[44,58,44,63],[44,64,44,69],[44,70,44,75],[44,76,44,81],[44,1,49,4],[44,5,49,21],[44,24,45,27],[44,28,44,33],[44,34,44,39],[44,40,44,45],[45,28,45,33],[45,34,45,39],[45,40,45,45],[46,24,46,27],[46,28,46,33],[46,34,46,39],[46,40,46,45],[46,46,46,51],[46,52,46,57],[46,58,46,63],[48,76,48,81],[48,82,48,87],[48,88,48,93],[48,94,48,99],[44,190,44,195],[44,196,44,201],[44,202,44,207],[44,208,44,213],[44,214,45,220],[44,221,45,228],[45,190,45,195],[45,196,45,201],[45,202,45,207],[45,208,45,213],[44,154,44,159],[44,160,44,165],[44,166,44,171],[44,172,44,177],[44,178,44,183],[44,184,44,189],[44,118,44,123],[44,124,44,129],[44,130,44,135],[44,136,44,141],[44,142,44,147],[44,148,44,153],[45,160,45,165],[45,166,45,171],[45,172,45,177],[45,178,45,183],[45,184,45,189],[45,118,45,123],[45,124,45,129],[45,130,45,135],[45,136,45,141],[45,142,45,147],[45,154,45,159],[45,46,45,51],[45,52,45,57],[45,58,45,63],[45,64,45,69],[45,70,45,75],[45,76,45,81],[47,124,47,129],[47,130,47,135],[47,64,47,69],[47,70,47,75],[47,76,47,81],[47,82,47,87],[47,88,47,93],[47,94,47,99],[46,208,46,213],[46,214,47,220],[45,148,45,153],[45,82,45,87],[45,88,45,93],[45,94,45,99],[45,100,45,105],[45,106,45,111],[45,112,45,117],[46,112,46,117],[46,118,46,123],[46,124,46,129],[46,130,46,135],[46,64,46,69],[46,70,46,75],[46,76,46,81],[46,82,46,87],[46,221,46,228],[47,24,47,27],[47,28,47,33],[47,34,47,39],[47,40,47,45],[47,46,47,51],[47,52,47,57],[47,58,47,63],[46,172,46,177],[46,178,46,183],[46,184,46,189],[46,190,46,195],[46,196,46,201],[46,202,46,207],[46,136,46,141],[46,142,46,147],[46,148,46,153],[46,154,46,159],[46,160,46,165],[46,166,46,171],[46,100,46,105],[46,106,46,111],[46,88,46,93],[46,94,46,99],[48,100,48,105],[48,106,48,111],[47,208,47,213],[48,24,49,27],[48,28,48,33],[48,34,48,39],[48,40,48,45],[48,46,48,51],[48,52,48,57],[48,58,48,63],[48,64,48,69],[48,70,48,75],[47,172,47,177],[47,178,47,183],[47,184,47,189],[47,190,47,195],[47,196,47,201],[47,202,47,207],[47,136,47,141],[47,142,47,147],[47,148,47,153],[47,154,47,159],[47,160,47,165],[47,166,47,171],[47,100,47,105],[47,106,47,111],[47,112,47,117],[47,118,47,123],[48,184,48,189],[48,190,48,195],[48,196,48,201],[48,202,48,207],[48,208,48,213],[48,214,49,220],[49,208,49,213],[48,148,48,153],[48,154,48,159],[48,160,48,165],[48,166,48,171],[48,172,48,177],[48,178,48,183],[48,112,48,117],[48,118,48,123],[48,124,48,129],[48,130,48,135],[48,136,48,141],[48,142,48,147],[49,178,49,183],[49,184,49,189],[49,190,49,195],[49,196,49,201],[49,202,49,207],[49,136,49,141],[49,142,49,147],[49,148,49,153],[49,154,49,159],[49,160,49,165],[49,166,49,171],[49,172,49,177],[49,100,49,105],[49,106,49,111],[49,112,49,117],[49,118,49,123],[49,124,49,129],[49,130,49,135],[50,94,50,99],[50,100,50,105],[50,106,50,111],[50,112,50,117],[50,46,50,51],[50,52,50,57],[50,58,50,63],[50,64,50,69],[50,70,50,75],[50,76,50,81],[50,1,54,4],[50,5,54,22],[50,24,51,27],[50,28,50,33],[50,34,50,39],[50,40,50,45],[49,64,49,69],[49,70,49,75],[49,76,49,81],[49,82,49,87],[49,88,49,93],[49,94,49,99],[49,28,49,33],[49,34,49,39],[49,40,49,45],[49,46,49,51],[49,52,49,57],[49,58,49,63],[51,118,51,123],[51,124,51,129],[51,58,51,63],[51,64,51,69],[51,70,51,75],[51,76,51,81],[51,82,51,87],[51,88,51,93],[50,190,50,195],[50,196,50,201],[50,202,50,207],[50,208,50,213],[50,214,51,220],[51,28,51,33],[51,34,51,39],[51,40,51,45],[51,46,51,51],[51,52,51,57],[50,154,50,159],[50,160,50,165],[50,166,50,171],[50,172,50,177],[50,178,50,183],[50,184,50,189],[50,118,50,123],[50,124,50,129],[50,130,50,135],[50,136,50,141],[50,142,50,147],[50,148,50,153],[50,82,50,87],[50,88,50,93],[52,70,52,75],[52,76,52,81],[52,82,52,87],[52,88,52,93],[52,94,52,99],[52,100,52,105],[51,202,51,207],[51,208,51,213],[52,24,52,27],[52,28,52,33],[52,34,52,39],[52,40,52,45],[52,46,52,51],[52,52,52,57],[52,58,52,63],[52,64,52,69],[51,166,51,171],[51,172,51,177],[51,178,51,183],[51,184,51,189],[51,190,51,195],[51,196,51,201],[51,130,51,135],[51,136,51,141],[51,142,51,147],[51,148,51,153],[51,154,51,159],[51,160,51,165],[51,94,51,99],[51,100,51,105],[51,106,51,111],[51,112,51,117],[53,88,53,93],[53,94,53,99],[53,100,53,105],[53,106,53,111],[52,214,53,220],[53,24,53,27],[53,28,53,33],[53,34,53,39],[53,40,53,45],[53,46,53,51],[53,52,53,57],[53,58,53,63],[53,64,53,69],[53,70,53,75],[52,178,52,183],[52,184,52,189],[52,190,52,195],[52,196,52,201],[52,202,52,207],[52,208,52,213],[52,142,52,147],[52,148,52,153],[52,154,52,159],[52,160,52,165],[52,166,52,171],[52,172,52,177],[52,106,52,111],[52,112,52,117],[52,118,52,123],[52,124,52,129],[52,130,52,135],[52,136,52,141],[54,112,54,117],[54,118,54,123],[54,52,54,57],[54,58,54,63],[54,64,54,69],[54,70,54,75],[54,76,54,81],[54,82,54,87],[53,184,53,189],[53,190,53,195],[53,196,53,201],[53,202,53,207],[53,208,53,213],[54,24,54,27],[54,28,54,33],[54,34,54,39]],"merged_total":1445,"flags":["merged_cut"]}
[null,null,null,null,null,null,null,null,null,null,null,null,null,null,null,null,null,null,null,null,null,null,null,null,null,null,null,null,null,null,null,null,null,null,null,null,null,null,null,null,null,null,null,null,null,null,null,null,null,null,null,null,null,null,null,null,null,null,null,null,null,null,null,null,null,null,null,null,null,null,null,null,null,null,null,null,null,null,null,null,null,null,null,null,null,null,null,null,null,null,null,null,null,null,null,null,null,null,null,null,null,null,null,null,null,null,null,null,null,null,null,null,null,null,null,null,null,null,null,null,null,null,null,null,null,null,null,null,null,null,null,null,null,null,null,null,null,null,null,null,null,null,null,null,null,null,null,null,null,null,null,null,null,null,null,null,null,null,null,null,null,null,null,null,null,null,null,null,null,null,null,null,null,null,null,null,null,null,null,null,null,null,null,null,null,null,null,null,null,null,null,null,null,null,null,null,null,null,null,null,null,null,null,null,null,null,null,null,null,null,null,null,null,null,null,null,null,null,null,null,null,null,null,null,null,null,null,null,null,null,null,null,null,null,null,null,null,null,null,null,null,"СЕГОДНЯ",null,null,null,null,null,null,null,null,"на январь 2020 года",null,1]
[null,null,null,null,null,null,null,null,null,null,null,null,null,null,null,null,null,null,null,null,null,null,null,null,null,null,null,null,null,null,null,null,null,null,null,null,null,null,null,null,null,null,null,null,null,null,null,null,null,null,null,null,null,null,null,null,null,null,null,null,null,null,null,null,null,null,null,null,null,null,null,null,null,null,null,null,null,null,null,null,null,null,null,null,null,null,null,null,null,null,null,null,null,null,null,null,null,null,null,null,null,null,null,null,null,null,null,null,null,null,null,null,null,null,null,null,null,null,null,null,null,null,null,null,null,null,null,null,null,null,null,null,null,null,null,null,null,null,null,null,null,null,null,null,null,null,null,null,null,null,null,null,null,null,null,null,null,null,null,null,null,null,null,null,null,null,null,null,null,null,null,null,null,null,null,null,null,null,null,null,null,null,null,null,null,null,null,null,null,null,null,null,null,null,null,null,null,null,null,null,null,null,null,null,null,null,null,null,null,null,null,null,null,null,null,null,null,null,null,null,null,null,null,null,null,null,null,null,null,null,null,null,null,null,null,null,null,null,null,null,null,{"$f":"TODAY()","v":"2020-05-17"},null,null,null,null,null,null,null,null,"на февраль 2020 года",null,2]
[null,null,null,null,null,null,null,null,null,null,null,null,null,null,null,null,null,null,null,null,null,null,null,null,null,null,null,null,null,null,null,null,null,null,null,null,null,null,null,null,null,null,null,null,null,null,null,null,null,null,null,null,null,null,null,null,null,null,null,null,null,null,null,null,null,null,null,null,null,null,null,null,null,null,null,null,null,null,null,null,null,null,null,null,null,null,null,null,null,null,null,null,null,null,null,null,null,null,null,null,null,null,null,null,null,null,null,null,null,null,null,null,null,null,null,null,null,null,null,null,null,null,null,null,null,null,null,null,null,null,null,null,null,null,null,null,null,null,null,null,null,null,null,null,null,null,null,null,null,null,null,null,null,null,null,null,null,null,null,null,null,null,null,null,null,null,null,null,null,null,null,null,null,null,null,null,null,null,null,null,null,null,null,null,null,null,null,null,null,null,null,null,null,null,null,null,null,null,null,null,null,null,null,null,null,null,null,null,null,null,null,null,null,null,null,null,null,null,null,null,null,null,null,null,null,null,null,null,null,null,null,null,null,null,null,null,null,null,null,null,null,{"$f":"TEXT(HZ2,\"дддд\")","v":"суббота"},null,null,null,null,null,null,null,null,"на март 2020 года",null,3]
[null,null,null,null,null,null,null,null,null,null,null,null,null,null,null,null,null,null,null,null,null,null,null,null,null,null,null,null,null,null,null,null,null,null,null,null,null,null,null,null,null,null,null,null,null,null,null,null,null,null,null,null,null,null,null,null,null,null,null,null,null,null,null,null,null,null,null,null,null,null,null,null,null,null,null,null,null,null,null,null,null,null,null,null,null,null,null,null,null,null,null,null,null,null,null,null,null,null,null,null,null,null,null,null,null,null,null,null,null,null,null,null,null,null,null,null,null,null,null,null,null,null,null,null,null,null,null,null,null,null,null,null,null,null,null,null,null,null,null,null,null,null,null,null,null,null,null,null,null,null,null,null,null,null,null,null,null,null,null,null,null,null,null,null,null,null,null,null,null,null,null,null,null,null,null,null,null,null,null,null,null,null,null,null,null,null,null,null,null,null,null,null,null,null,null,null,null,null,null,null,null,null,null,null,null,null,null,null,null,null,null,null,null,null,null,null,null,null,null,null,null,null,null,null,null,null,null,null,null,null,null,null,null,null,null,null,null,null,null,null,null,{"$f":"WEEKNUM(IH2,2)&\"-ая неделя\"","v":"20-ая неделя"},null,null,null,null,null,null,null,null,"на апрель 2020 года",null,4]
[null,null,null,null,null,null,null,null,{"$f":"IF(OR(#REF!<D3,AND(#REF!<D2,#REF!=D3)),$CN$24,IF(OR(#REF!>D3,AND(#REF!>D2,#REF!=D3)),0,DAY(A2)))","v":{"$error":"#REF!"}},null,null,null,null,null,null,null,null,null,null,null,null,null,null,null,null,null,null,null,null,null,null,null,null,null,null,null,null,null,null,null,null,null,null,null,null,null,null,null,null,null,null,null,null,null,null,null,null,null,null,null,null,null,null,null,null,null,null,null,null,null,null,null,null,null,null,null,null,null,null,null,null,null,null,null,null,null,null,null,null,null,null,null,null,null,null,null,null,null,null,null,null,null,null,null,null,null,null,null,null,null,null,null,null,null,null,null,null,null,null,null,null,null,null,null,null,null,null,null,null,null,null,null,null,null,null,null,null,null,null,null,null,null,null,null,null,null,null,null,null,null,null,null,null,null,null,null,null,null,null,null,null,null,null,null,null,null,null,null,null,null,null,null,null,null,null,null,null,null,null,null,null,null,null,null,null,null,null,null,null,null,null,null,null,null,null,null,null,null,null,null,null,null,null,null,null,null,null,null,null,null,null,null,null,null,null,null,null,null,null,null,null,null,null,null,null,null,null,null,null,null,null,null,null,null,null,null,null,null,null,null,null,{"$f":"IF(OR(#REF!<IC3,AND(#REF!<IC2,#REF!=IC3)),$CN$24,IF(OR(#REF!>IC3,AND(#REF!>IC2,#REF!=IC3)),0,DAY(HZ2)))","v":{"$error":"#REF!"}},null,null,null,null,null,null,null,null,"на май 2020 года",null,5]
[null,null,null,null,null,null,null,null,null,null,null,null,null,null,null,null,null,null,null,null,null,null,null,null,null,null,null,null,null,null,null,null,null,null,null,null,null,null,null,null,null,null,null,null,null,null,null,null,null,null,null,null,null,null,null,null,null,null,null,null,null,null,null,null,null,null,null,null,null,null,null,null,null,null,null,null,null,null,null,null,null,null,null,null,null,null,null,null,null,null,null,null,null,null,null,null,null,null,null,null,null,null,null,null,null,null,null,null,null,null,null,null,null,null,null,null,null,null,null,null,null,null,null,null,null,null,null,null,null,null,null,null,null,null,null,null,null,null,null,null,null,null,null,null,null,null,null,null,null,null,null,null,null,null,null,null,null,null,null,null,null,null,null,null,null,null,null,null,null,null,null,null,null,null,null,null,null,null,null,null,null,null,null,null,null,null,null,null,null,null,null,null,null,null,null,null,null,null,null,null,null,null,null,null,null,null,null,null,null,null,null,null,null,null,null,null,null,null,null,null,null,null,null,null,null,null,null,null,null,null,null,null,null,null,null,null,null,null,null,null,"время",null,null,null,null,null,null,null,null,null,"на июнь 2020 года",null,6]
[null,null,null,null,null,null,null,null,null,null,null,null,null,null,null,null,null,null,null,null,null,null,null,null,null,null,null,null,null,null,null,null,null,null,null,null,null,null,null,null,null,null,null,null,null,null,null,null,null,null,null,null,null,null,null,null,null,null,null,null,null,null,null,null,null,null,null,null,null,null,null,null,null,null,null,null,null,null,null,null,null,null,null,null,null,null,null,null,null,null,null,null,null,null,null,null,null,null,null,null,null,null,null,null,null,null,null,null,null,null,null,null,null,null,null,null,null,null,null,null,null,null,null,null,null,null,null,null,null,null,null,null,null,null,null,null,null,null,null,null,null,null,null,null,null,null,null,null,null,null,null,null,null,null,null,null,null,null,null,null,null,null,null,null,null,null,null,null,null,null,null,null,null,null,null,null,null,null,null,null,null,null,null,null,null,null,null,null,null,null,null,null,null,null,null,null,null,null,null,null,null,null,null,null,null,null,null,null,1,null,null,null,null,null,null,null,null,null,null,null,null,null,null,null,null,null,null,null,null,null,null,null,null,null,null,"количество дней месяца",null,null,30,null,null,null,null,null,null,null,null,null,null,null,"на июль 2020 года",null,7]
[null,null,null,null,null,null,null,null,null,null,null,null,null,null,null,null,null,null,null,null,null,null,null,null,null,null,null,null,null,null,null,null,null,null,null,null,null,null,null,null,null,null,null,null,null,null,null,null,null,null,null,null,null,null,null,null,null,null,null,null,null,null,null,null,null,null,null,null,null,null,null,null,null,null,null,null,null,null,null,null,null,null,null,null,null,null,null,null,null,null,null,null,null,null,null,null,null,null,null,null,null,null,null,null,null,null,null,null,null,null,null,null,null,null,null,null,null,null,null,null,null,null,null,null,null,null,null,null,null,null,null,null,null,null,null,null,null,null,null,null,null,null,null,null,null,null,null,null,null,null,null,null,null,null,null,null,null,null,null,null,null,null,null,null,null,null,null,null,null,null,null,null,null,null,null,null,null,null,null,null,null,null,null,null,null,null,null,null,null,null,null,null,null,null,null,null,null,null,null,null,null,null,null,null,null,null,null,null,2,null,null,null,null,null,null,null,null,null,null,null,null,null,null,null,null,null,null,null,null,null,null,null,null,null,null,"месяц",null,null,6,null,0,null,136,17,null,"я",null,null,null,null,"на август 2020 года",null,8]
[null,null,null,null,null,null,null,null,null,null,null,null,null,null,null,null,null,null,null,null,null,null,null,null,"СПАСИБО!!!",null,null,null,null,null,null,null,null,null,null,null,null,null,null,null,null,null,null,null,null,null,null,null,null,null,null,null,null,null,null,null,null,null,null,null,null,null,null,null,null,null,null,null,null,null,null,null,null,null,null,null,null,null,null,null,null,null,null,null,null,null,null,null,null,null,null,null,null,null,null,null,null,null,null,null,null,null,null,null,null,null,null,null,null,null,null,null,null,null,null,null,null,null,null,null,null,null,null,null,null,null,null,null,null,null,null,null,null,null,null,null,null,null,null,null,null,null,null,null,null,null,null,null,null,null,null,null,null,null,null,null,null,null,null,null,null,null,null,null,null,null,null,null,null,null,null,null,null,null,null,null,null,null,null,null,null,null,null,null,null,null,null,null,null,null,null,null,null,null,null,null,null,null,null,null,null,null,null,null,null,null,null,null,null,null,null,null,null,null,null,null,null,null,null,null,null,null,null,null,null,null,null,null,null,null,null,null,null,null,null,"год",null,null,{"$f":"YEAR(A22)","v":2020},null,2.0833333333333332E-2,null,152,19,null,"ф",null,null,null,null,"на сентябрь 2020 года",null,9]
[null,null,null,null,null,null,null,null,null,null,null,null,null,null,null,null,null,null,null,null,null,null,null,null,null,null,null,null,null,null,null,null,null,null,null,null,null,null,null,null,null,null,null,null,null,null,null,null,null,null,null,null,null,null,null,null,null,null,null,null,null,null,null,null,null,null,null,null,null,null,null,null,null,null,null,null,null,null,null,null,null,null,null,null,null,null,null,null,null,null,null,null,null,null,null,null,null,null,null,null,null,null,null,null,null,null,null,null,null,null,null,null,null,null,null,null,null,null,null,null,null,null,null,null,null,null,null,null,null,null,null,null,null,null,null,null,null,null,null,null,null,null,null,null,null,null,null,null,null,null,null,null,null,null,null,null,null,null,null,null,null,null,null,null,null,null,null,null,null,null,null,null,null,null,null,null,null,null,null,null,null,null,null,null,null,null,null,null,null,null,"УТВЕРЖДАЮ",null,null,null,null,null,null,null,null,null,null,null,null,null,null,null,null,null,null,null,null,null,null,null,null,null,null,null,null,null,null,null,null,null,null,null,null,null,null,null,null,null,null,null,null,null,null,null,null,null,6.25E-2,null,168,21,null,"м",null,null,null,null,"на октябрь 2020 года",null,10]
[null,null,null,null,null,null,null,null,null,null,null,null,null,null,null,null,null,null,null,null,null,null,null,null,null,null,null,null,null,null,null,null,null,null,null,null,null,null,null,null,null,null,null,null,null,null,null,null,null,null,null,null,null,null,null,null,null,null,null,null,null,null,null,null,null,null,null,null,null,null,null,null,null,null,null,null,null,null,null,null,null,null,null,null,null,null,null,null,null,null,null,null,null,null,null,null,null,null,null,null,null,null,null,null,null,null,null,null,null,null,null,null,null,null,null,null,null,null,null,null,null,null,null,null,null,null,null,null,null,null,null,null,null,null,null,null,null,null,null,null,null,null,null,null,null,null,null,null,null,null,null,null,null,null,null,null,null,null,null,null,null,null,null,null,null,null,null,null,null,null,null,null,null,null,null,null,null,null,null,null,null,null,null,null,null,null,null,null,null,null," ",null,null,null,null,null,null,null,null,null,null,null,null,null,null,null,null,null,null,null,null,null,null,null,null,null,null,null,null,null,null,null,null,null,null,null,null,null,null,null,null,null,null,null,null,"0бед",null,null,4.1666666666666664E-2,null,0.41666666666666669,null,175,22,null,"а",null,null,null,null,"на ноябрь 2020 года",null,11]
[null,null,null,null,null,null,null,null,null,null,null,null,null,null,null,null,null,null,null,null,null,null,null,null,"Но, макрос проставляет букву через шаг в июне правильно (1-3-5-7-9 …-30), но когда перехожу на июль (31 д.) шаг должен меняться",null,null,null,null,null,null,null,null,null,null,null,null,null,null,null,null,null,null,null,null,null,null,null,null,null,null,null,null,null,null,null,null,null,null,null,null,null,null,null,null,null,null,null,null,null,null,null,null,null,null,null,null,null,null,null,null,null,null,null,null,null,null,null,null,null,null,null,null,null,null,null,null,null,null,null,null,null,null,null,null,null,null,null,null,null,null,null,null,null,null,null,null,null,null,null,null,null,null,null,null,null,null,null,null,null,null,null,null,null,null,null,null,null,null,null,null,null,null,null,null,null,null,null,null,null,null,null,null,null,null,null,null,null,null,null,null,null,null,null,null,null,null,null,null,null,null,null,null,null,null,null,null,null,null,null,null,null,null,null,null,null,null,null,null,null,"_______________С. А. Сорокина",null,null,null,null,null,null,null,null,null,null,null,null,null,null,null,null,null,null,null,null,null,null,null,null,null,null,null,null,null,null,null,null,null,null,null,null,null,null,null,null,null,null,null,null,null,null,null,null,null,0.45833333333333331,null,135,17,null,"май",null,null,null,null,"на декабрь 2020 года",null,12]
[null,null,null,null,null,null,null,null,null,null,null,null,null,null,null,null,null,null,null,null,null,null,null,null,null,null,null,null,null,null,null,null,null,null,null,null,null,null,null,null,null,null,null,null,null,null,null,null,null,null,null,null,null,null,null,null,null,null,null,null,null,null,null,null,null,null,null,null,null,null,null,null,null,null,null,null,null,null,null,null,null,null,null,null,null,null,null,null,null,null,null,null,null,null,null,null,null,null,null,null,null,null,null,null,null,null,null,null,null,null,null,null,null,null,null,null,null,null,null,null,null,null,null,null,null,null,null,null,null,null,null,null,null,null,null,null,null,null,null,null,null,null,null,null,null,null,null,null,null,null,null,null,null,null,null,null,null,null,null,null,null,null,null,null,null,null,null,null,null,null,null,null,null,null,null,null,null,null,null,null,null,null,null,null,null,null,null,null,null,null,"\"01\"",null,null,null,null,null,null,null,null,null," ",null,null,null,null,null,null,null,null,null,null,2020,null,null,null,null,null,null,null,null,null,null,null,null,null,null,null,null,null,null,null,null,null,null,null,null,null,null,null,null,0.125,null,167,21,null,"июнь"]
[null,null,null,null,null,null,null,null,null,null,null,null,null,null,null,null,null,null,null,null,null,null,null,null,"на  (2-4-6-8-10…...), но макрос проставляет вариант 1-3-5-7-9…."]
[]
[null,null,null,null,null,null,null,null,null,null,null,null,null,null,null,null,null,null,null,null,null,null,null,null,"я полный чайник в макросах, может  я хочу невозможного?????"]
[null,null,null,null,null,null,null,null,null,null,null,null,null,null,null,null,null,null,null,null,null,null,"не сочтите за наглость.",null,null,null,null,null,null,null,null,null,null,null,null,null,null,null,null,null,null,null,null,null,null,null,null,null,null,null,null,null,null,null,null,null,null,null,null,null,null,null,null,null,null,null,null,null,null,null,null,null,null,null,null,null,null,null,null,null,null,null,null,null,null,null,null,null,null,null,null,null,null,null,null,null,null,null,null,null,null,null,null,null,null,null,null,null,null,null,null,null,null,null,null,null,null,null,null,null,null,null,null,null,null,null,null,null,null,null,null,null,null,null,null,null,null,null,null,null,null,null,null,null,null,null,null,null,null,null,null,null,null,null,null,null,null,null,null,null,null,null,null,null,null,null,null,null,null,null,null,null,null,null,null,null,null,null,null,null,null,null,null,null,null,null,null,null,null,null,null,null,null,null,null,null,null,null,null,null,null,null,null,null,null,null,null,null,null,null,null,null,null,null,null,null,null,null,null,null,null,null,null,null,null,null,null,null,null,null,null,null,null,null,null,null,null,null,null,null,0.14583333333333334,null,184,23,null,"июль",null,null,null,null,"Слезинский В.Е.,  управляющий участка",null,null,null,null,null,1]
[]
[]
["ГРАФИК",null,null,null,null,null,null,null,null,null,null,null,null,null,null,null,null,null,null,null,null,null,null,null,null,null,null,null,null,null,null,null,null,null,null,null,null,null,null,null,null,null,null,null,null,null,null,null,null,null,null,null,null,null,null,null,null,null,null,null,null,null,null,null,null,null,null,null,null,null,null,null,null,null,null,null,null,null,null,null,null,null,null,null,null,null,null,null,null,null,null,null,null,null,null,null,null,null,null,null,null,null,null,null,null,null,null,null,null,null,null,null,null,null,null,null,null,null,null,null,null,null,null,null,null,null,null,null,null,null,null,null,null,null,null,null,null,null,null,null,null,null,null,null,null,null,null,null,null,null,null,null,null,null,null,null,null,null,null,null,null,null,null,null,null,null,null,null,null,null,null,null,null,null,null,null,null,null,null,null,null,null,null,null,null,null,null,null,null,null,null,null,null,null,null,null,null,null,null,null,null,null,null,null,null,null,null,null,null,null,null,null,null,null,null,null,null,null,null,null,null,null,null,null,null,null,null,null,null,null,null,null,null,null,null,null,null,null,null,null,0.16666666666666666,null,168,21,null,"август",null,null,null,null,"Медведев А.П., слесарь-ремонтник",null,null,null,null,null,0.5]
["УЧЕТА ИСПОЛЬЗОВАНИЯ РАБОЧЕГО ВРЕМЕНИ ОБСЛУЖИВАЮЩЕГО ПЕРСОНАЛА",null,null,null,null,null,null,null,null,null,null,null,null,null,null,null,null,null,null,null,null,null,null,null,null,null,null,null,null,null,null,null,null,null,null,null,null,null,null,null,null,null,null,null,null,null,null,null,null,null,null,null,null,null,null,null,null,null,null,null,null,null,null,null,null,null,null,null,null,null,null,null,null,null,null,null,null,null,null,null,null,null,null,null,null,null,null,null,null,null,null,null,null,null,null,null,null,null,null,null,null,null,null,null,null,null,null,null,null,null,null,null,null,null,null,null,null,null,null,null,null,null,null,null,null,null,null,null,null,null,null,null,null,null,null,null,null,null,null,null,null,null,null,null,null,null,null,null,null,null,null,null,null,null,null,null,null,null,null,null,null,null,null,null,null,null,null,null,null,null,null,null,null,null,null,null,null,null,null,null,null,null,null,null,null,null,null,null,null,null,null,null,null,null,null,null,null,null,null,null,null,null,null,null,null,null,null,null,null,null,null,null,null,null,null,null,null,null,null,null,null,null,null,null,null,null,null,null,null,null,null,null,null,null,null,null,null,null,null,null,0.1875,null,176,22,null,null,null,null,null,null,"Береговой Г.П., электрик",null,null,null,null,null,0.25]
["2020-06-01",null,null,null,null,null,null,null,null,null,null,null,null,null,null,null,null,null,null,null,null,null,null,null,null,null,null,null,null,null,null,null,null,null,null,null,null,null,null,null,null,null,null,null,null,null,null,null,null,null,null,null,null,null,null,null,null,null,null,null,null,null,null,null,null,null,null,null,null,null,null,null,null,null,null,null,null,null,null,null,null,null,null,null,null,null,null,null,null,null,null,null,null,null,null,null,null,null,null,null,null,null,null,null,null,null,null,null,null,null,null,null,null,null,null,null,null,null,null,null,null,null,null,null,null,null,null,null,null,null,null,null,null,null,null,null,null,null,null,null,null,null,null,null,null,null,null,null,null,null,null,null,null,null,null,null,null,null,null,null,null,null,null,null,null,null,null,null,null,null,null,null,null,null,null,null,null,null,null,null,null,null,null,null,null,null,null,null,null,null,null,null,null,null,null,null,null,null,null,null,null,null,null,null,null,null,null,null,null,null,null,null,null,null,null,null,null,null,null,null,null,null,null,null,null,null,null,null,null,null,null,null,"июнь",null,null,null,null,null,null,null,0.20833333333333334,null,176,22,null,null,null,null,null,null,"Воротынцева В.Н., кассир билетный"]
[null,null,null,null,null,null,null,null,null,null,null,null,null,null,null,null,null,null,null,null,null,null,null,null,null,null,null,null,null,null,null,null,null,null,null,null,null,null,null,null,null,null,null,null,null,null,null,null,null,null,null,null,null,null,null,null,null,null,null,null,null,null,null,null,null,null,null,null,null,null,null,null,null,null,null,null,null,null,null,null,null,null,null,null,null,null,null,null,null,null,null,null,null,null,null,null,null,null,null,null,null,null,null,null,null,null,null,null,null,null,null,null,null,null,null,null,null,null,null,null,null,null,null,null,null,null,null,null,null,null,null,null,null,null,null,null,null,null,null,null,null,null,null,null,null,null,null,null,null,null,null,null,null,null,null,null,null,null,null,null,null,null,null,null,null,null,null,null,null,null,null,null,null,null,null,null,null,null,null,null,null,null,null,null,null,null,null,null,null,null,null,null,null,null,null,null,null,null,null,null,null,null,null,null,null,null,null,null,null,null,null,null,null,null,null,null,null,null,null,null,null,null,null,null,null,null,null,null,null,null,null,null,null,null,null,null,null,null,null,null,0.22916666666666666,null,159,20,null,null,null,null,null,null,"Окорочкова О.Т., кассир билетный"]
["№",null,null,null,null,"Фамилия Инициалы",null,null,null,null,null,null,null,null,null,null,null,null,null,null,null,null,null,"Ставка",null,null,null,null,1,null,null,null,null,null,2,null,null,null,null,null,3,null,null,null,null,null,4,null,null,null,null,null,5,null,null,null,null,null,6,null,null,null,null,null,7,null,null,null,null,null,8,null,null,null,null,null,9,null,null,null,null,null,10,null,null,null,null,null,11,null,null,null,null,null,12,null,null,null,null,null,13,null,null,null,null,null,14,null,null,null,null,null,15,null,null,null,null,null,16,null,null,null,null,null,17,null,null,null,null,null,18,null,null,null,null,null,19,null,null,null,null,null,20,null,null,null,null,null,21,null,null,null,null,null,22,null,null,null,null,null,23,null,null,null,null,null,24,null,null,null,null,null,25,null,null,null,null,null,26,null,null,null,null,null,27,null,null,null,null,null,28,null,null,null,null,null,{"$f":"IF(29<=$IE$7,29,\"-\")","v":29},null,null,null,null,null,{"$f":"IF(30<=$IE$7,30,\"-\")","v":30},null,null,null,null,null,{"$f":"IF(31<=$IE$7,31,\"-\")","v":"-"},null,null,null,null,null,"ВСЕГО",null,null,null,null,null,null,null,null,null,null,null,null,null,null,null,null,null,null,"по календарю",null,null,null,null,null,null,0.25,null,183,23,null,null,null,null,null,null,"Пермякова Т.М., контролёр-посадчик аттракциона"]
[null,null,null,null,null,null,null,null,null,null,null,null,null,null,null,null,null,null,null,null,null,null,null,null,null,null,null,null,null,null,null,null,null,null,null,null,null,null,null,null,null,null,null,null,null,null,null,null,null,null,null,null,null,null,null,null,null,null,null,null,null,null,null,null,null,null,null,null,null,null,null,null,null,null,null,null,null,null,null,null,null,null,null,null,null,null,null,null,null,null,null,null,null,null,null,null,null,null,null,null,null,null,null,null,null,null,null,null,null,null,null,null,null,null,null,null,null,null,null,null,null,null,null,null,null,null,null,null,null,null,null,null,null,null,null,null,null,null,null,null,null,null,null,null,null,null,null,null,null,null,null,null,null,null,null,null,null,null,null,null,null,null,null,null,null,null,null,null,null,null,null,null,null,null,null,null,null,null,null,null,null,null,null,null,null,null,null,null,null,null,null,null,null,null,null,null,null,null,null,null,null,null,null,null,null,null,null,null,null,null,null,null,null,null,"дней",null,null,null,null,null,null,null,null,null,null,null,null,null,null,null,null,null,"часов","дней","часов",null,null,null,null,null,0.27083333333333331,null,null,null,null,null,null,null,null,null,"Алексеева Р.И., котролёр-посадчик аттракциона"]
[null,null,null,null,null,null,null,null,null,null,null,null,null,null,null,null,null,null,null,null,null,null,null,null,null,null,null,null,{"$f":"IFERROR($A$22+AC24-1,\"-\")","v":"2020-06-01"},null,null,null,null,null,{"$f":"IFERROR($A$22+AI24-1,\"-\")","v":"2020-06-02"},null,null,null,null,null,{"$f":"IFERROR($A$22+AO24-1,\"-\")","v":"2020-06-03"},null,null,null,null,null,{"$f":"IFERROR($A$22+AU24-1,\"-\")","v":"2020-06-04"},null,null,null,null,null,{"$f":"IFERROR($A$22+BA24-1,\"-\")","v":"2020-06-05"},null,null,null,null,null,{"$f":"IFERROR($A$22+BG24-1,\"-\")","v":"2020-06-06"},null,null,null,null,null,{"$f":"IFERROR($A$22+BM24-1,\"-\")","v":"2020-06-07"},null,null,null,null,null,{"$f":"IFERROR($A$22+BS24-1,\"-\")","v":"2020-06-08"},null,null,null,null,null,{"$f":"IFERROR($A$22+BY24-1,\"-\")","v":"2020-06-09"},null,null,null,null,null,{"$f":"IFERROR($A$22+CE24-1,\"-\")","v":"2020-06-10"},null,null,null,null,null,{"$f":"IFERROR($A$22+CK24-1,\"-\")","v":"2020-06-11"},null,null,null,null,null,{"$f":"IFERROR($A$22+CQ24-1,\"-\")","v":"2020-06-12"},null,null,null,null,null,{"$f":"IFERROR($A$22+CW24-1,\"-\")","v":"2020-06-13"},null,null,null,null,null,{"$f":"IFERROR($A$22+DC24-1,\"-\")","v":"2020-06-14"},null,null,null,null,null,{"$f":"IFERROR($A$22+DI24-1,\"-\")","v":"2020-06-15"},null,null,null,null,null,{"$f":"IFERROR($A$22+DO24-1,\"-\")","v":"2020-06-16"},null,null,null,null,null,{"$f":"IFERROR($A$22+DU24-1,\"-\")","v":"2020-06-17"},null,null,null,null,null,{"$f":"IFERROR($A$22+EA24-1,\"-\")","v":"2020-06-18"},null,null,null,null,null,{"$f":"IFERROR($A$22+EG24-1,\"-\")","v":"2020-06-19"},null,null,null,null,null,{"$f":"IFERROR($A$22+EM24-1,\"-\")","v":"2020-06-20"},null,null,null,null,null,{"$f":"IFERROR($A$22+ES24-1,\"-\")","v":"2020-06-21"},null,null,null,null,null,{"$f":"IFERROR($A$22+EY24-1,\"-\")","v":"2020-06-22"},null,null,null,null,null,{"$f":"IFERROR($A$22+FE24-1,\"-\")","v":"2020-06-23"},null,null,null,null,null,{"$f":"IFERROR($A$22+FK24-1,\"-\")","v":"2020-06-24"},null,null,null,null,null,{"$f":"IFERROR($A$22+FQ24-1,\"-\")","v":"2020-06-25"},null,null,null,null,null,{"$f":"IFERROR($A$22+FW24-1,\"-\")","v":"2020-06-26"},null,null,null,null,null,{"$f":"IFERROR($A$22+GC24-1,\"-\")","v":"2020-06-27"},null,null,null,null,null,{"$f":"IFERROR($A$22+GI24-1,\"-\")","v":"2020-06-28"},null,null,null,null,null,{"$f":"IFERROR($A$22+GO24-1,\"-\")","v":"2020-06-29"},null,null,null,null,null,{"$f":"IFERROR($A$22+GU24-1,\"-\")","v":"2020-06-30"},null,null,null,null,null,{"$f":"IFERROR($A$22+HA24-1,\"-\")","v":"-"},null,null,null,null,null,null,null,null,null,null,null,null,null,null,null,null,null,null,null,null,null,null,null,null,null,null,null,null,null,null,null,1]
[1,null,null,null,null,"Слезинский В.Е  управляющий участка",null,null,null,null,null,null,null,null,null,null,null,null,null,null,null,null,null,1,null,null,null,null,"Б",null,null,null,null,null,"В",null,null,null,null,null,0.41666666666666669,null,null,null,null,null,"В",null,null,null,null,null,null,null,null,null,null,null,null,null,null,null,null,null,"В",null,null,null,null,null,null,null,null,null,null,null,"В",null,null,null,null,null,null,null,null,null,null,null,"В",null,null,null,null,null,null,null,null,null,null,null,null,null,null,null,null,null,"В",null,null,null,null,null,null,null,null,null,null,null,"В",null,null,null,null,null,null,null,null,null,null,null,"В",null,null,null,null,null,null,null,null,null,null,null,null,null,null,null,null,null,"В",null,null,null,null,null,null,null,null,null,null,null,"В",null,null,null,null,null,null,null,null,null,null,null,"В",null,null,null,null,null,null,null,null,null,null,null,null,null,null,null,null,null,"В",null,null,null,null,null,null,null,null,null,null,null,"В",null,null,null,null,null,null,null,null,null,null,null,{"$f":"COUNT(AC27:HF27)","v":1},null,null,null,null,null,null,null,null,null,null,null,null,null,null,null,null,null,{"$f":"SUM(IFERROR(AC28:HF28-AC27:HF27-AC29:HF29,0))","v":0.20833333333333329},{"$f":"VLOOKUP($HY$22,'[5]производственный календарь '!$B$2:$D$13,3,0)","v":21},{"$f":"VLOOKUP($HY$22,'[5]производственный календарь '!$B$2:$D$13,2,0)","v":167},null,null,null,null,null,4.1666666666666664E-2,null,null,null,null,null,null,null,null,null,"Перминов К.И., дежурный зала"]
[null,null,null,null,null,null,null,null,null,null,null,null,null,null,null,null,null,null,null,null,null,null,null,null,null,null,null,null,null,null,null,null,null,null,"В",null,null,null,null,null,0.66666666666666663,null,null,null,null,null,"В",null,null,null,null,null,null,null,null,null,null,null,null,null,null,null,null,null,"В",null,null,null,null,null,null,null,null,null,null,null,"В",null,null,null,null,null,null,null,null,null,null,null,"В",null,null,null,null,null,null,null,null,null,null,null,null,null,null,null,null,null,"В",null,null,null,null,null,null,null,null,null,null,null,"В",null,null,null,null,null,null,null,null,null,null,null,"В",null,null,null,null,null,null,null,null,null,null,null,null,null,null,null,null,null,"В",null,null,null,null,null,null,null,null,null,null,null,"В",null,null,null,null,null,null,null,null,null,null,null,"В",null,null,null,null,null,null,null,null,null,null,null,null,null,null,null,null,null,"В",null,null,null,null,null,null,null,null,null,null,null,"В",null,null,null,null,null,null,null,null,null,null,null,null,null,null,null,null,null,null,null,null,null,null,null,null,null,null,null,null,null,null,null,null,null,null,null,null,null,0.33333333333333331,null,null,null,null,null,null,null,null,null,"Перминов К.И., кассир"]
[null,null,null,null,null,null,null,null,null,null,null,null,null,null,null,null,null,null,null,null,null,null,null,"обед",null,null,null,null,null,null,null,null,null,null,"В",null,null,null,null,null,"01:00:00",null,null,null,null,null,"В",null,null,null,null,null,null,null,null,null,null,null,null,null,null,null,null,null,"В",null,null,null,null,null,null,null,null,null,null,null,"В",null,null,null,null,null,null,null,null,null,null,null,"В",null,null,null,null,null,null,null,null,null,null,null,null,null,null,null,null,null,"В",null,null,null,null,null,null,null,null,null,null,null,"В",null,null,null,null,null,null,null,null,null,null,null,"В",null,null,null,null,null,null,null,null,null,null,null,null,null,null,null,null,null,"В",null,null,null,null,null,null,null,null,null,null,null,"В",null,null,null,null,null,null,null,null,null,null,null,"В",null,null,null,null,null,null,null,null,null,null,null,null,null,null,null,null,null,"В",null,null,null,null,null,null,null,null,null,null,null,"В",null,null,null,null,null,null,null,null,null,null,null,null,null,null,null,null,null,null,null,null,null,null,null,null,null,null,null,null,null,null,null,null,null,null,null,null,null,"В",null,null,null,null,null,null,null,null,null,"Бутелин Ю.Н., сторож"]
[null,null,null,null,null,null,null,null,null,null,null,null,null,null,null,null,null,null,null,null,null,null,null,"р.д.",null,null,null,null,{"$f":"IFERROR(AC28-AC27-AC29,0)","v":"00:00:00"},null,null,null,null,null,{"$f":"IFERROR(AI28-AI27-AI29,0)","v":"00:00:00"},null,null,null,null,null,{"$f":"IFERROR(AO28-AO27-AO29,0)","v":"05:00:00"},null,null,null,null,null,{"$f":"IFERROR(AU28-AU27-AU29,0)","v":"00:00:00"},null,null,null,null,null,{"$f":"IFERROR(BA28-BA27-BA29,0)","v":"00:00:00"},null,null,null,null,null,{"$f":"IFERROR(BG28-BG27-BG29,0)","v":"00:00:00"},null,null,null,null,null,{"$f":"IFERROR(BM28-BM27-BM29,0)","v":"00:00:00"},null,null,null,null,null,{"$f":"IFERROR(BS28-BS27-BS29,0)","v":"00:00:00"},null,null,null,null,null,{"$f":"IFERROR(BY28-BY27-BY29,0)","v":"00:00:00"},null,null,null,null,null,{"$f":"IFERROR(CE28-CE27-CE29,0)","v":"00:00:00"},null,null,null,null,null,{"$f":"IFERROR(CK28-CK27-CK29,0)","v":"00:00:00"},null,null,null,null,null,{"$f":"IFERROR(CQ28-CQ27-CQ29,0)","v":"00:00:00"},null,null,null,null,null,{"$f":"IFERROR(CW28-CW27-CW29,0)","v":"00:00:00"},null,null,null,null,null,{"$f":"IFERROR(DC28-DC27-DC29,0)","v":"00:00:00"},null,null,null,null,null,{"$f":"IFERROR(DI28-DI27-DI29,0)","v":"00:00:00"},null,null,null,null,null,{"$f":"IFERROR(DO28-DO27-DO29,0)","v":"00:00:00"},null,null,null,null,null,{"$f":"IFERROR(DU28-DU27-DU29,0)","v":"00:00:00"},null,null,null,null,null,{"$f":"IFERROR(EA28-EA27-EA29,0)","v":"00:00:00"},null,null,null,null,null,{"$f":"IFERROR(EG28-EG27-EG29,0)","v":"00:00:00"},null,null,null,null,null,{"$f":"IFERROR(EM28-EM27-EM29,0)","v":"00:00:00"},null,null,null,null,null,{"$f":"IFERROR(ES28-ES27-ES29,0)","v":"00:00:00"},null,null,null,null,null,{"$f":"IFERROR(EY28-EY27-EY29,0)","v":"00:00:00"},null,null,null,null,null,{"$f":"IFERROR(FE28-FE27-FE29,0)","v":"00:00:00"},null,null,null,null,null,{"$f":"IFERROR(FK28-FK27-FK29,0)","v":"00:00:00"},null,null,null,null,null,{"$f":"IFERROR(FQ28-FQ27-FQ29,0)","v":"00:00:00"},null,null,null,null,null,{"$f":"IFERROR(FW28-FW27-FW29,0)","v":"00:00:00"},null,null,null,null,null,{"$f":"IFERROR(GC28-GC27-GC29,0)","v":"00:00:00"},null,null,null,null,null,{"$f":"IFERROR(GI28-GI27-GI29,0)","v":"00:00:00"},null,null,null,null,null,{"$f":"IFERROR(GO28-GO27-GO29,0)","v":"00:00:00"},null,null,null,null,null,{"$f":"IFERROR(GU28-GU27-GU29,0)","v":"00:00:00"},null,null,null,null,null,{"$f":"IFERROR(HA28-HA27-HA29,0)","v":"00:00:00"},null,null,null,null,null,null,null,null,null,null,null,null,null,null,null,null,null,null,null,null,null,null,null,{"$f":"SUM(AC30:GZ30)","v":0.20833333333333329},null,null,null,null,null,null,null,0.83333333333333337,null,null,null,null,null,null,null,null,null,"Бутелин Ю.Н., контролёр-посадчик"]
[null,null,null,null,null,null,null,null,null,null,null,null,null,null,null,null,null,null,null,null,null,null,null,"пр",null,null,null,null,null,null,null,null,null,null,null,null,null,null,null,null,null,null,null,null,null,null,null,null,null,null,null,null,null,null,null,null,null,null,null,null,null,null,null,null,null,null,null,null,null,null,null,null,null,null,null,null,null,null,null,null,null,null,null,null,null,null,null,null,null,null,null,null,null,null,null,null,null,null,null,null,null,null,null,null,null,null,null,null,null,null,null,null,null,null,null,null,null,null,null,null,null,null,null,null,null,null,null,null,null,null,null,null,null,null,null,null,null,null,null,null,null,null,null,null,null,null,null,null,null,null,null,null,null,null,null,null,null,null,null,null,null,null,null,null,null,null,null,null,null,null,null,null,null,null,null,null,null,null,null,null,null,null,null,null,null,null,null,null,null,null,null,null,null,null,null,null,null,null,null,null,null,null,null,null,null,null,null,null,null,null,null,null,null,null,null,null,null,null,null,null,null,null,null,null,null,null,null,null,null,null,null,null,null,null,null,null,null,null,null,null,0.875,null,null,null,null,null,null,null,null,null,"Медведев А.П., сторож"]
[null,null,null,null,null,null,null,null,null,null,null,null,null,null,null,null,null,null,null,null,null,null,null,null,null,null,null,null,null,null,null,null,null,null,null,null,null,null,null,null,null,null,null,null,null,null,null,null,null,null,null,null,null,null,null,null,null,null,null,null,null,null,null,null,null,null,null,null,null,null,null,null,null,null,null,null,null,null,null,null,null,null,null,null,null,null,null,null,null,null,null,null,null,null,null,null,null,null,null,null,null,null,null,null,null,null,null,null,null,null,null,null,null,null,null,null,null,null,null,null,null,null,null,null,null,null,null,null,null,null,null,null,null,null,null,null,null,null,null,null,null,null,null,null,null,null,null,null,null,null,null,null,null,null,null,null,null,null,null,null,null,null,null,null,null,null,null,null,null,null,null,null,null,null,null,null,null,null,null,null,null,null,null,null,null,null,null,null,null,null,null,null,null,null,null,null,null,null,null,null,null,null,null,null,null,null,null,null,null,null,null,null,null,null,null,null,null,null,null,null,null,null,null,null,null,null,null,null,null,null,null,null,null,null,null,null,null," ",null,null,0.79166666666666663]
[null,2,null,null,null,"Медведев А.П., слесарь-ремонтник",null,null,null,null,null,null,null,null,null,null,null,null,null,null,null,null,null,null,1,null,null,null,"В",null,null,null,null,null,"В",null,null,null,null,null,"В",null,null,null,null,null,null,null,null,null,null,null,"В",null,null,null,null,null,"В",null,null,null,null,null,"В",null,null,null,null,null,"В",null,null,null,null,null,"В",null,null,null,null,null,"В",null,null,null,null,null,null,null,null,null,null,null,"В",null,null,null,null,null,"В",null,null,null,null,null,"В",null,null,null,null,null,"В",null,null,null,null,null,"В",null,null,null,null,null,"В",null,null,null,null,null,null,null,null,null,null,null,"В",null,null,null,null,null,"В",null,null,null,null,null,"В",null,null,null,null,null,"В",null,null,null,null,null,"В",null,null,null,null,null,"В",null,null,null,null,null,null,null,null,null,null,null,"В",null,null,null,null,null,"В",null,null,null,null,null,"В",null,null,null,null,null,"В",null,null,null,null,null,"В",null,null,null,null,null,null,null,null,null,null,null,{"$f":"COUNT(AC33:HF33)","v":0},null,null,null,null,null,null,null,null,null,null,null,null,null,null,null,null,null,{"$f":"SUM(IFERROR(AC34:HF34-AC33:HF33-AC35:HF35,0))","v":0},{"$f":"VLOOKUP($HY$22,'[5]производственный календарь '!$B$2:$D$13,3,0)","v":21},{"$f":"VLOOKUP($HY$22,'[5]производственный календарь '!$B$2:$D$13,2,0)","v":167},null,null,null,null,null,0.75]
[null,null,null,null,null,null,null,null,null,null,null,null,null,null,null,null,null,null,null,null,null,null,null,null,null,null,null,null,"В",null,null,null,null,null,"В",null,null,null,null,null,"В",null,null,null,null,null,null,null,null,null,null,null,"В",null,null,null,null,null,"В",null,null,null,null,null,"В",null,null,null,null,null,"В",null,null,null,null,null,"В",null,null,null,null,null,"В",null,null,null,null,null,null,null,null,null,null,null,"В",null,null,null,null,null,"В",null,null,null,null,null,"В",null,null,null,null,null,"В",null,null,null,null,null,"В",null,null,null,null,null,"В",null,null,null,null,null,null,null,null,null,null,null,"В",null,null,null,null,null,"В",null,null,null,null,null,"В",null,null,null,null,null,"В",null,null,null,null,null,"В",null,null,null,null,null,"В",null,null,null,null,null,null,null,null,null,null,null,"В",null,null,null,null,null,"В",null,null,null,null,null,"В",null,null,null,null,null,"В",null,null,null,null,null,"В",null,null,null,null,null,null,null,null,null,null,null,null,null,null,null,null,null,null,null,null,null,null,null,null,null,null,null,null,null,null,null,null,null,null,null,null,null,0.95833333333333337]
[null,null,null,null,null,null,null,null,null,null,null,null,null,null,null,null,null,null,null,null,null,null,null,null,"обед",null,null,null,"В",null,null,null,null,null,"В",null,null,null,null,null,"В",null,null,null,null,null,null,null,null,null,null,null,"В",null,null,null,null,null,"В",null,null,null,null,null,"В",null,null,null,null,null,"В",null,null,null,null,null,"В",null,null,null,null,null,"В",null,null,null,null,null,null,null,null,null,null,null,"В",null,null,null,null,null,"В",null,null,null,null,null,"В",null,null,null,null,null,"В",null,null,null,null,null,"В",null,null,null,null,null,"В",null,null,null,null,null,null,null,null,null,null,null,"В",null,null,null,null,null,"В",null,null,null,null,null,"В",null,null,null,null,null,"В",null,null,null,null,null,"В",null,null,null,null,null,"В",null,null,null,null,null,null,null,null,null,null,null,"В",null,null,null,null,null,"В",null,null,null,null,null,"В",null,null,null,null,null,"В",null,null,null,null,null,"В",null,null,null,null,null,null,null,null,null,null,null,null,null,null,null,null,null,null,null,null,null,null,null,null,null,null,null,null,null,null,null,null,null,null,null,null,null,0.91666666666666663]
[null,null,null,null,null,null,null,null,null,null,null,null,null,null,null,null,null,null,null,null,null,null,null,null,"р.д.",null,null,null,{"$f":"IFERROR(AC34-AC33-AC35,0)","v":"00:00:00"},null,null,null,null,null,{"$f":"IFERROR(AI34-AI33-AI35,0)","v":"00:00:00"},null,null,null,null,null,{"$f":"IFERROR(AO34-AO33-AO35,0)","v":"00:00:00"},null,null,null,null,null,{"$f":"IFERROR(AU34-AU33-AU35,0)","v":"00:00:00"},null,null,null,null,null,{"$f":"IFERROR(BA34-BA33-BA35,0)","v":"00:00:00"},null,null,null,null,null,{"$f":"IFERROR(BG34-BG33-BG35,0)","v":"00:00:00"},null,null,null,null,null,{"$f":"IFERROR(BM34-BM33-BM35,0)","v":"00:00:00"},null,null,null,null,null,{"$f":"IFERROR(BS34-BS33-BS35,0)","v":"00:00:00"},null,null,null,null,null,{"$f":"IFERROR(BY34-BY33-BY35,0)","v":"00:00:00"},null,null,null,null,null,{"$f":"IFERROR(CE34-CE33-CE35,0)","v":"00:00:00"},null,null,null,null,null,{"$f":"IFERROR(CK34-CK33-CK35,0)","v":"00:00:00"},null,null,null,null,null,{"$f":"IFERROR(CQ34-CQ33-CQ35,0)","v":"00:00:00"},null,null,null,null,null,{"$f":"IFERROR(CW34-CW33-CW35,0)","v":"00:00:00"},null,null,null,null,null,{"$f":"IFERROR(DC34-DC33-DC35,0)","v":"00:00:00"},null,null,null,null,null,{"$f":"IFERROR(DI34-DI33-DI35,0)","v":"00:00:00"},null,null,null,null,null,{"$f":"IFERROR(DO34-DO33-DO35,0)","v":"00:00:00"},null,null,null,null,null,{"$f":"IFERROR(DU34-DU33-DU35,0)","v":"00:00:00"},null,null,null,null,null,{"$f":"IFERROR(EA34-EA33-EA35,0)","v":"00:00:00"},null,null,null,null,null,{"$f":"IFERROR(EG34-EG33-EG35,0)","v":"00:00:00"},null,null,null,null,null,{"$f":"IFERROR(EM34-EM33-EM35,0)","v":"00:00:00"},null,null,null,null,null,{"$f":"IFERROR(ES34-ES33-ES35,0)","v":"00:00:00"},null,null,null,null,null,{"$f":"IFERROR(EY34-EY33-EY35,0)","v":"00:00:00"},null,null,null,null,null,{"$f":"IFERROR(FE34-FE33-FE35,0)","v":"00:00:00"},null,null,null,null,null,{"$f":"IFERROR(FK34-FK33-FK35,0)","v":"00:00:00"},null,null,null,null,null,{"$f":"IFERROR(FQ34-FQ33-FQ35,0)","v":"00:00:00"},null,null,null,null,null,{"$f":"IFERROR(FW34-FW33-FW35,0)","v":"00:00:00"},null,null,null,null,null,{"$f":"IFERROR(GC34-GC33-GC35,0)","v":"00:00:00"},null,null,null,null,null,{"$f":"IFERROR(GI34-GI33-GI35,0)","v":"00:00:00"},null,null,null,null,null,{"$f":"IFERROR(GO34-GO33-GO35,0)","v":"00:00:00"},null,null,null,null,null,{"$f":"IFERROR(GU34-GU33-GU35,0)","v":"00:00:00"},null,null,null,null,null,{"$f":"IFERROR(HA34-HA33-HA35,0)","v":"00:00:00"},null,null,null,null,null,null,null,null,null,null,null,null,null,null,null,null,null,null,null,null,null,null,null,{"$f":"SUM(AC36:HE36)","v":0},null,null,null,null,null,null,null,"ОТ"]
[null,null,null,null,null,null,null,null,null,null,null,null,null,null,null,null,null,null,null,null,null,null,null,null,"пр.",null,null,null,null,null,null,null,null,null,null,null,null,null,null,null,null,null,null,null,null,null,null,null,null,null,null,null,null,null,null,null,null,null,null,null,null,null,null,null,null,null,null,null,null,null,null,null,null,null,null,null,null,null,null,null,null,null,null,null,null,null,null,null,null,null,null,null,null,null,null,null,null,null,null,null,null,null,null,null,null,null,null,null,null,null,null,null,null,null,null,null,null,null,null,null,null,null,null,null,null,null,null,null,null,null,null,null,null,null,null,null,null,null,null,null,null,null,null,null,null,null,null,null,null,null,null,null,null,null,null,null,null,null,null,null,null,null,null,null,null,null,null,null,null,null,null,null,null,null,null,null,null,null,null,null,null,null,null,null,null,null,null,null,null,null,null,null,null,null,null,null,null,null,null,null,null,null,null,null,null,null,null,null,null,null,null,null,null,null,null,null,null,null,null,null,null,null,null,null,null,null,null,null,null,null,null,null,null,null,null,null,null,null,null,null,"Б"]
[]
[null,3,null,null,null,"Береговой Г.П., электрик",null,null,null,null,null,null,null,null,null,null,null,null,null,null,null,null,null,1,null,null,null,null,"В",null,null,null,null,null,null,null,null,null,null,null,"В",null,null,null,null,null,"В",null,null,null,null,null,"В",null,null,null,null,null,"В",null,null,null,null,null,"В",null,null,null,null,null,"В",null,null,null,null,null,null,null,null,null,null,null,"В",null,null,null,null,null,"В",null,null,null,null,null,"В",null,null,null,null,null,"В",null,null,null,null,null,"В",null,null,null,null,null,"В",null,null,null,null,null,null,null,null,null,null,null,"В",null,null,null,null,null,"В",null,null,null,null,null,"В",null,null,null,null,null,"В",null,null,null,null,null,"В",null,null,null,null,null,"В",null,null,null,null,null,null,null,null,null,null,null,"В",null,null,null,null,null,"В",null,null,null,null,null,"В",null,null,null,null,null,"В",null,null,null,null,null,"В",null,null,null,null,null,"В",null,null,null,null,null,null,null,null,null,null,null,null,null,null,null,null,null,{"$f":"COUNT(AC39:HF39)","v":0},null,null,null,null,null,null,null,null,null,null,null,null,null,null,null,null,null,{"$f":"SUM(IFERROR(AC40:HF40-AC39:HF39-AC41:HF41,0))","v":0},{"$f":"VLOOKUP($HY$22,'[5]производственный календарь '!$B$2:$D$13,3,0)","v":21},{"$f":"VLOOKUP($HY$22,'[5]производственный календарь '!$B$2:$D$13,2,0)","v":167}]
[null,null,null,null,null,null,null,null,null,null,null,null,null,null,null,null,null,null,null,null,null,null,null,null,null,null,null,null,"В",null,null,null,null,null,null,null,null,null,null,null,"В",null,null,null,null,null,"В",null,null,null,null,null,"В",null,null,null,null,null,"В",null,null,null,null,null,"В",null,null,null,null,null,"В",null,null,null,null,null,null,null,null,null,null,null,"В",null,null,null,null,null,"В",null,null,null,null,null,"В",null,null,null,null,null,"В",null,null,null,null,null,"В",null,null,null,null,null,"В",null,null,null,null,null,null,null,null,null,null,null,"В",null,null,null,null,null,"В",null,null,null,null,null,"В",null,null,null,null,null,"В",null,null,null,null,null,"В",null,null,null,null,null,"В",null,null,null,null,null,null,null,null,null,null,null,"В",null,null,null,null,null,"В",null,null,null,null,null,"В",null,null,null,null,null,"В",null,null,null,null,null,"В",null,null,null,null,null,"В"]
[null,null,null,null,null,null,null,null,null,null,null,null,null,null,null,null,null,null,null,null,null,null,null,"обед",null,null,null,null,"В",null,null,null,null,null,null,null,null,null,null,null,"В",null,null,null,null,null,"В",null,null,null,null,null,"В",null,null,null,null,null,"В",null,null,null,null,null,"В",null,null,null,null,null,"В",null,null,null,null,null,null,null,null,null,null,null,"В",null,null,null,null,null,"В",null,null,null,null,null,"В",null,null,null,null,null,"В",null,null,null,null,null,"В",null,null,null,null,null,"В",null,null,null,null,null,null,null,null,null,null,null,"В",null,null,null,null,null,"В",null,null,null,null,null,"В",null,null,null,null,null,"В",null,null,null,null,null,"В",null,null,null,null,null,"В",null,null,null,null,null,null,null,null,null,null,null,"В",null,null,null,null,null,"В",null,null,null,null,null,"В",null,null,null,null,null,"В",null,null,null,null,null,"В",null,null,null,null,null,"В"]
[null,null,null,null,null,null,null,null,null,null,null,null,null,null,null,null,null,null,null,null,null,null,null,"р.д.",null,null,null,null,{"$f":"IFERROR(AC40-AC39-AC41,0)","v":"00:00:00"},null,null,null,null,null,{"$f":"IFERROR(AI40-AI39-AI41,0)","v":"00:00:00"},null,null,null,null,null,{"$f":"IFERROR(AO40-AO39-AO41,0)","v":"00:00:00"},null,null,null,null,null,{"$f":"IFERROR(AU40-AU39-AU41,0)","v":"00:00:00"},null,null,null,null,null,{"$f":"IFERROR(BA40-BA39-BA41,0)","v":"00:00:00"},null,null,null,null,null,{"$f":"IFERROR(BG40-BG39-BG41,0)","v":"00:00:00"},null,null,null,null,null,{"$f":"IFERROR(BM40-BM39-BM41,0)","v":"00:00:00"},null,null,null,null,null,{"$f":"IFERROR(BS40-BS39-BS41,0)","v":"00:00:00"},null,null,null,null,null,{"$f":"IFERROR(BY40-BY39-BY41,0)","v":"00:00:00"},null,null,null,null,null,{"$f":"IFERROR(CE40-CE39-CE41,0)","v":"00:00:00"},null,null,null,null,null,{"$f":"IFERROR(CK40-CK39-CK41,0)","v":"00:00:00"},null,null,null,null,null,{"$f":"IFERROR(CQ40-CQ39-CQ41,0)","v":"00:00:00"},null,null,null,null,null,{"$f":"IFERROR(CW40-CW39-CW41,0)","v":"00:00:00"},null,null,null,null,null,{"$f":"IFERROR(DC40-DC39-DC41,0)","v":"00:00:00"},null,null,null,null,null,{"$f":"IFERROR(DI40-DI39-DI41,0)","v":"00:00:00"},null,null,null,null,null,{"$f":"IFERROR(DO40-DO39-DO41,0)","v":"00:00:00"},null,null,null,null,null,{"$f":"IFERROR(DU40-DU39-DU41,0)","v":"00:00:00"},null,null,null,null,null,{"$f":"IFERROR(EA40-EA39-EA41,0)","v":"00:00:00"},null,null,null,null,null,{"$f":"IFERROR(EG40-EG39-EG41,0)","v":"00:00:00"},null,null,null,null,null,{"$f":"IFERROR(EM40-EM39-EM41,0)","v":"00:00:00"},null,null,null,null,null,{"$f":"IFERROR(ES40-ES39-ES41,0)","v":"00:00:00"},null,null,null,null,null,{"$f":"IFERROR(EY40-EY39-EY41,0)","v":"00:00:00"},null,null,null,null,null,{"$f":"IFERROR(FE40-FE39-FE41,0)","v":"00:00:00"},null,null,null,null,null,{"$f":"IFERROR(FK40-FK39-FK41,0)","v":"00:00:00"},null,null,null,null,null,{"$f":"IFERROR(FQ40-FQ39-FQ41,0)","v":"00:00:00"},null,null,null,null,null,{"$f":"IFERROR(FW40-FW39-FW41,0)","v":"00:00:00"},null,null,null,null,null,{"$f":"IFERROR(GC40-GC39-GC41,0)","v":"00:00:00"},null,null,null,null,null,{"$f":"IFERROR(GI40-GI39-GI41,0)","v":"00:00:00"},null,null,null,null,null,{"$f":"IFERROR(GO40-GO39-GO41,0)","v":"00:00:00"},null,null,null,null,null,{"$f":"IFERROR(GU40-GU39-GU41,0)","v":"00:00:00"},null,null,null,null,null,{"$f":"IFERROR(HA40-HA39-HA41,0)","v":"00:00:00"},null,null,null,null,null,null,null,null,null,null,null,null,null,null,null,null,null,null,null,null,null,null,null,{"$f":"SUM(AC42:HE42)","v":0}]
[null,null,null,null,null,null,null,null,null,null,null,null,null,null,null,null,null,null,null,null,null,null,null,"пр"]
[]
[null,4,null,null,null,"Воротынцева В.Н., кассир билетный",null,null,null,null,null,null,null,null,null,null,null,null,null,null,null,null,null,null,1,null,null,null,"Р",null,null,null,null,null,null,null,null,null,null,null,"Р",null,null,null,null,null,null,null,null,null,null,null,"Р",null,null,null,null,null,null,null,null,null,null,null,"Р",null,null,null,null,null,null,null,null,null,null,null,"Р",null,null,null,null,null,null,null,null,null,null,null,"Р",null,null,null,null,null,null,null,null,null,null,null,"Р",null,null,null,null,null,null,null,null,null,null,null,"Р",null,null,null,null,null,null,null,null,null,null,null,"Р",null,null,null,null,null,null,null,null,null,null,null,"Р",null,null,null,null,null,null,null,null,null,null,null,"Р",null,null,null,null,null,null,null,null,null,null,null,"Р",null,null,null,null,null,null,null,null,null,null,null,"Р",null,null,null,null,null,null,null,null,null,null,null,"Р",null,null,null,null,null,null,null,null,null,null,null,"Р",null,null,null,null,null,null,null,null,null,null,null,null,null,null,null,null,null,{"$f":"COUNT(AC45:HF45)","v":0},null,null,null,null,null,null,null,null,null,null,null,null,null,null,null,null,null,{"$f":"SUM(IFERROR(AC46:HF46-AC45:HF45-AC47:HF47,0))","v":0},{"$f":"VLOOKUP($HY$22,'[5]производственный календарь '!$B$2:$D$13,3,0)","v":21},{"$f":"VLOOKUP($HY$22,'[5]производственный календарь '!$B$2:$D$13,2,0)","v":167}]
[null,null,null,null,null,null,null,null,null,null,null,null,null,null,null,null,null,null,null,null,null,null,null,null,null,null,null,null,"Р",null,null,null,null,null,null,null,null,null,null,null,"Р",null,null,null,null,null,null,null,null,null,null,null,"Р",null,null,null,null,null,null,null,null,null,null,null,"Р",null,null,null,null,null,null,null,null,null,null,null,"Р",null,null,null,null,null,null,null,null,null,null,null,"Р",null,null,null,null,null,null,null,null,null,null,null,"Р",null,null,null,null,null,null,null,null,null,null,null,"Р",null,null,null,null,null,null,null,null,null,null,null,"Р",null,null,null,null,null,null,null,null,null,null,null,"Р",null,null,null,null,null,null,null,null,null,null,null,"Р",null,null,null,null,null,null,null,null,null,null,null,"Р",null,null,null,null,null,null,null,null,null,null,null,"Р",null,null,null,null,null,null,null,null,null,null,null,"Р",null,null,null,null,null,null,null,null,null,null,null,"Р"]
[null,null,null,null,null,null,null,null,null,null,null,null,null,null,null,null,null,null,null,null,null,null,null,null,"обед",null,null,null,null,null,null,null,null,null,null,null,null,null,null,null,null,null,null,null,null,null,null,null,null,null,null,null,null,null,null,null,null,null,null,null,null,null,null,null,null,null,null,null,null,null,null,null,null,null,null,null,null,null,null,null,null,null,null,null,null,null,null,null,null,null,null,null,null,null,null,null,null,null,null,null,null,null,null,null,null,null,null,null,null,null,null,null,null,null,null,null,null,null,null,null,null,null,null,null,null,null,null,null,null,null,null,null,null,null,null,null,null,null,null,null,null,null,null,null,null,null,null,null,null,null,null,null,null,null,null,null,null,null,null,null,null,null,null,null,null,null,null,null,null,null,null,null,null,null,null,null,null,null,null,null,null,null,null,null,null,null,null,null,null,null,null,null,null,null,null,null,null,null,null,null,null,null,null,null,null,null,null,null,null,null,null,null,null,null,null,null,null,null,null,null,null,null,null,null,null,null,null,null,null,null,null,null,null,null,null,null,null,null,null,null,"Р"]
[null,null,null,null,null,null,null,null,null,null,null,null,null,null,null,null,null,null,null,null,null,null,null,null,"р.д.",null,null,null,{"$f":"IFERROR(AC46-AC45-AC47,0)","v":"00:00:00"},null,null,null,null,null,{"$f":"IFERROR(AI46-AI45-AI47,0)","v":"00:00:00"},null,null,null,null,null,{"$f":"IFERROR(AO46-AO45-AO47,0)","v":"00:00:00"},null,null,null,null,null,{"$f":"IFERROR(AU46-AU45-AU47,0)","v":"00:00:00"},null,null,null,null,null,{"$f":"IFERROR(BA46-BA45-BA47,0)","v":"00:00:00"},null,null,null,null,null,{"$f":"IFERROR(BG46-BG45-BG47,0)","v":"00:00:00"},null,null,null,null,null,{"$f":"IFERROR(BM46-BM45-BM47,0)","v":"00:00:00"},null,null,null,null,null,{"$f":"IFERROR(BS46-BS45-BS47,0)","v":"00:00:00"},null,null,null,null,null,{"$f":"IFERROR(BY46-BY45-BY47,0)","v":"00:00:00"},null,null,null,null,null,{"$f":"IFERROR(CE46-CE45-CE47,0)","v":"00:00:00"},null,null,null,null,null,{"$f":"IFERROR(CK46-CK45-CK47,0)","v":"00:00:00"},null,null,null,null,null,{"$f":"IFERROR(CQ46-CQ45-CQ47,0)","v":"00:00:00"},null,null,null,null,null,{"$f":"IFERROR(CW46-CW45-CW47,0)","v":"00:00:00"},null,null,null,null,null,{"$f":"IFERROR(DC46-DC45-DC47,0)","v":"00:00:00"},null,null,null,null,null,{"$f":"IFERROR(DI46-DI45-DI47,0)","v":"00:00:00"},null,null,null,null,null,{"$f":"IFERROR(DO46-DO45-DO47,0)","v":"00:00:00"},null,null,null,null,null,{"$f":"IFERROR(DU46-DU45-DU47,0)","v":"00:00:00"},null,null,null,null,null,{"$f":"IFERROR(EA46-EA45-EA47,0)","v":"00:00:00"},null,null,null,null,null,{"$f":"IFERROR(EG46-EG45-EG47,0)","v":"00:00:00"},null,null,null,null,null,{"$f":"IFERROR(EM46-EM45-EM47,0)","v":"00:00:00"},null,null,null,null,null,{"$f":"IFERROR(ES46-ES45-ES47,0)","v":"00:00:00"},null,null,null,null,null,{"$f":"IFERROR(EY46-EY45-EY47,0)","v":"00:00:00"},null,null,null,null,null,{"$f":"IFERROR(FE46-FE45-FE47,0)","v":"00:00:00"},null,null,null,null,null,{"$f":"IFERROR(FK46-FK45-FK47,0)","v":"00:00:00"},null,null,null,null,null,{"$f":"IFERROR(FQ46-FQ45-FQ47,0)","v":"00:00:00"},null,null,null,null,null,{"$f":"IFERROR(FW46-FW45-FW47,0)","v":"00:00:00"},null,null,null,null,null,{"$f":"IFERROR(GC46-GC45-GC47,0)","v":"00:00:00"},null,null,null,null,null,{"$f":"IFERROR(GI46-GI45-GI47,0)","v":"00:00:00"},null,null,null,null,null,{"$f":"IFERROR(GO46-GO45-GO47,0)","v":"00:00:00"},null,null,null,null,null,{"$f":"IFERROR(GU46-GU45-GU47,0)","v":"00:00:00"},null,null,null,null,null,{"$f":"IFERROR(HA46-HA45-HA47,0)","v":"00:00:00"},null,null,null,null,null,null,null,null,null,null,null,null,null,null,null,null,null,null,null,null,null,null,null,{"$f":"SUM(AC48:HE48)","v":0}]
[null,null,null,null,null,null,null,null,null,null,null,null,null,null,null,null,null,null,null,null,null,null,null,null,"пр."]
[]
[null,5,null,null,null,"Окорочкова О.Т., кассир билетный",null,null,null,null,null,null,null,null,null,null,null,null,null,null,null,null,null,null,1,null,null,null,null,null,null,null,null,null,"Р",null,null,null,null,null,null,null,null,null,null,null,"Р",null,null,null,null,null,null,null,null,null,null,null,"Р",null,null,null,null,null,null,null,null,null,null,null,"Р",null,null,null,null,null,null,null,null,null,null,null,"Р",null,null,null,null,null,null,null,null,null,null,null,"Р",null,null,null,null,null,null,null,null,null,null,null,"Р",null,null,null,null,null,null,null,null,null,null,null,"Р",null,null,null,null,null,null,null,null,null,null,null,"Р",null,null,null,null,null,null,null,null,null,null,null,"Р",null,null,null,null,null,null,null,null,null,null,null,"Р",null,null,null,null,null,null,null,null,null,null,null,"Р",null,null,null,null,null,null,null,null,null,null,null,"Р",null,null,null,null,null,null,null,null,null,null,null,"Р",null,null,null,null,null,null,null,null,null,null,null,"Р",null,null,null,null,null,null,null,null,null,null,null,"Р",null,null,null,null,null,null,null,null,null,null,null,null,null,null,null,null,null,{"$f":"SUM(IFERROR(AC52:HF52-AC51:HF51-AC53:HF53,0))","v":0},{"$f":"VLOOKUP($HY$22,'[5]производственный календарь '!$B$2:$D$13,3,0)","v":21},{"$f":"VLOOKUP($HY$22,'[5]производственный календарь '!$B$2:$D$13,2,0)","v":167}]
[null,null,null,null,null,null,null,null,null,null,null,null,null,null,null,null,null,null,null,null,null,null,null,null,null,null,null,null,null,null,null,null,null,null,"Р",null,null,null,null,null,null,null,null,null,null,null,"Р",null,null,null,null,null,null,null,null,null,null,null,"Р",null,null,null,null,null,null,null,null,null,null,null,"Р",null,null,null,null,null,null,null,null,null,null,null,"Р",null,null,null,null,null,null,null,null,null,null,null,"Р",null,null,null,null,null,null,null,null,null,null,null,"Р",null,null,null,null,null,null,null,null,null,null,null,"Р",null,null,null,null,null,null,null,null,null,null,null,"Р",null,null,null,null,null,null,null,null,null,null,null,"Р",null,null,null,null,null,null,null,null,null,null,null,"Р",null,null,null,null,null,null,null,null,null,null,null,"Р",null,null,null,null,null,null,null,null,null,null,null,"Р",null,null,null,null,null,null,null,null,null,null,null,"Р",null,null,null,null,null,null,null,null,null,null,null,"Р"]
[null,null,null,null,null,null,null,null,null,null,null,null,null,null,null,null,null,null,null,null,null,null,null,null,"обед"]
[null,null,null,null,null,null,null,null,null,null,null,null,null,null,null,null,null,null,null,null,null,null,null,null,"р.д.",null,null,null,{"$f":"IFERROR(AC52-AC51-AC53,0)","v":"00:00:00"},null,null,null,null,null,{"$f":"IFERROR(AI52-AI51-AI53,0)","v":"00:00:00"},null,null,null,null,null,{"$f":"IFERROR(AO52-AO51-AO53,0)","v":"00:00:00"},null,null,null,null,null,{"$f":"IFERROR(AU52-AU51-AU53,0)","v":"00:00:00"},null,null,null,null,null,{"$f":"IFERROR(BA52-BA51-BA53,0)","v":"00:00:00"},null,null,null,null,null,{"$f":"IFERROR(BG52-BG51-BG53,0)","v":"00:00:00"},null,null,null,null,null,{"$f":"IFERROR(BM52-BM51-BM53,0)","v":"00:00:00"},null,null,null,null,null,{"$f":"IFERROR(BS52-BS51-BS53,0)","v":"00:00:00"},null,null,null,null,null,{"$f":"IFERROR(BY52-BY51-BY53,0)","v":"00:00:00"},null,null,null,null,null,{"$f":"IFERROR(CE52-CE51-CE53,0)","v":"00:00:00"},null,null,null,null,null,{"$f":"IFERROR(CK52-CK51-CK53,0)","v":"00:00:00"},null,null,null,null,null,{"$f":"IFERROR(CQ52-CQ51-CQ53,0)","v":"00:00:00"},null,null,null,null,null,{"$f":"IFERROR(CW52-CW51-CW53,0)","v":"00:00:00"},null,null,null,null,null,{"$f":"IFERROR(DC52-DC51-DC53,0)","v":"00:00:00"},null,null,null,null,null,{"$f":"IFERROR(DI52-DI51-DI53,0)","v":"00:00:00"},null,null,null,null,null,{"$f":"IFERROR(DO52-DO51-DO53,0)","v":"00:00:00"},null,null,null,null,null,{"$f":"IFERROR(DU52-DU51-DU53,0)","v":"00:00:00"},null,null,null,null,null,{"$f":"IFERROR(EA52-EA51-EA53,0)","v":"00:00:00"},null,null,null,null,null,{"$f":"IFERROR(EG52-EG51-EG53,0)","v":"00:00:00"},null,null,null,null,null,{"$f":"IFERROR(EM52-EM51-EM53,0)","v":"00:00:00"},null,null,null,null,null,{"$f":"IFERROR(ES52-ES51-ES53,0)","v":"00:00:00"},null,null,null,null,null,{"$f":"IFERROR(EY52-EY51-EY53,0)","v":"00:00:00"},null,null,null,null,null,{"$f":"IFERROR(FE52-FE51-FE53,0)","v":"00:00:00"},null,null,null,null,null,{"$f":"IFERROR(FK52-FK51-FK53,0)","v":"00:00:00"},null,null,null,null,null,{"$f":"IFERROR(FQ52-FQ51-FQ53,0)","v":"00:00:00"},null,null,null,null,null,{"$f":"IFERROR(FW52-FW51-FW53,0)","v":"00:00:00"},null,null,null,null,null,{"$f":"IFERROR(GC52-GC51-GC53,0)","v":"00:00:00"},null,null,null,null,null,{"$f":"IFERROR(GI52-GI51-GI53,0)","v":"00:00:00"},null,null,null,null,null,{"$f":"IFERROR(GO52-GO51-GO53,0)","v":"00:00:00"},null,null,null,null,null,{"$f":"IFERROR(GU52-GU51-GU53,0)","v":"00:00:00"},null,null,null,null,null,{"$f":"IFERROR(HA52-HA51-HA53,0)","v":"00:00:00"},null,null,null,null,null,null,null,null,null,null,null,null,null,null,null,null,null,null,null,null,null,null,null,{"$f":"SUM(AC54:HE54)","v":0}]
[null,null,null,null,null,null,null,null,null,null,null,null,null,null,null,null,null,null,null,null,null,null,null,null,"пр."]
[null,6,null,null,null,"Пермякова Т.М., контролёр-посадчик аттракциона",null,null,null,null,null,null,null,null,null,null,null,null,null,null,null,null,null,null,1,null,null,null,"Р",null,null,null,null,null,null,null,null,null,null,null,"Р",null,null,null,null,null,null,null,null,null,null,null,"Р",null,null,null,null,null,null,null,null,null,null,null,"Р",null,null,null,null,null,null,null,null,null,null,null,"Р",null,null,null,null,null,null,null,null,null,null,null,"Р",null,null,null,null,null,null,null,null,null,null,null,"Р",null,null,null,null,null,null,null,null,null,null,null,"Р",null,null,null,null,null,null,null,null,null,null,null,"Р",null,null,null,null,null,null,null,null,null,null,null,"Р",null,null,null,null,null,null,null,null,null,null,null,"Р",null,null,null,null,null,null,null,null,null,null,null,"Р",null,null,null,null,null,null,null,null,null,null,null,"Р",null,null,null,null,null,null,null,null,null,null,null,"Р",null,null,null,null,null,null,null,null,null,null,null,"Р",null,null,null,null,null,null,null,null,null,null,null,null,null,null,null,null,null,{"$f":"COUNT(AC56:HF56)","v":0},null,null,null,null,null,null,null,null,null,null,null,null,null,null,null,null,null,{"$f":"SUM(IFERROR(AC57:HF57-AC56:HF56-AC58:HF58,0))","v":0},{"$f":"VLOOKUP($HY$22,'[5]производственный календарь '!$B$2:$D$13,3,0)","v":21},{"$f":"VLOOKUP($HY$22,'[5]производственный календарь '!$B$2:$D$13,2,0)","v":167}]
[null,null,null,null,null,null,null,null,null,null,null,null,null,null,null,null,null,null,null,null,null,null,null,null,null,null,null,null,"Р",null,null,null,null,null,null,null,null,null,null,null,"Р",null,null,null,null,null,null,null,null,null,null,null,"Р",null,null,null,null,null,null,null,null,null,null,null,"Р",null,null,null,null,null,null,null,null,null,null,null,"Р",null,null,null,null,null,null,null,null,null,null,null,"Р",null,null,null,null,null,null,null,null,null,null,null,"Р",null,null,null,null,null,null,null,null,null,null,null,"Р",null,null,null,null,null,null,null,null,null,null,null,"Р",null,null,null,null,null,null,null,null,null,null,null,"Р",null,null,null,null,null,null,null,null,null,null,null,"Р",null,null,null,null,null,null,null,null,null,null,null,"Р",null,null,null,null,null,null,null,null,null,null,null,"Р",null,null,null,null,null,null,null,null,null,null,null,"Р",null,null,null,null,null,null,null,null,null,null,null,"Р"]
[null,null,null,null,null,null,null,null,null,null,null,null,null,null,null,null,null,null,null,null,null,null,null,null,"обед"]
[null,null,null,null,null,null,null,null,null,null,null,null,null,null,null,null,null,null,null,null,null,null,null,null,"р.д.",null,null,null,{"$f":"IFERROR(AC57-AC56-AC58,0)","v":"00:00:00"},null,null,null,null,null,{"$f":"IFERROR(AI57-AI56-AI58,0)","v":"00:00:00"},null,null,null,null,null,{"$f":"IFERROR(AO57-AO56-AO58,0)","v":"00:00:00"},null,null,null,null,null,{"$f":"IFERROR(AU57-AU56-AU58,0)","v":"00:00:00"},null,null,null,null,null,{"$f":"IFERROR(BA57-BA56-BA58,0)","v":"00:00:00"},null,null,null,null,null,{"$f":"IFERROR(BG57-BG56-BG58,0)","v":"00:00:00"},null,null,null,null,null,{"$f":"IFERROR(BM57-BM56-BM58,0)","v":"00:00:00"},null,null,null,null,null,{"$f":"IFERROR(BS57-BS56-BS58,0)","v":"00:00:00"},null,null,null,null,null,{"$f":"IFERROR(BY57-BY56-BY58,0)","v":"00:00:00"},null,null,null,null,null,{"$f":"IFERROR(CE57-CE56-CE58,0)","v":"00:00:00"},null,null,null,null,null,{"$f":"IFERROR(CK57-CK56-CK58,0)","v":"00:00:00"},null,null,null,null,null,{"$f":"IFERROR(CQ57-CQ56-CQ58,0)","v":"00:00:00"},null,null,null,null,null,{"$f":"IFERROR(CW57-CW56-CW58,0)","v":"00:00:00"},null,null,null,null,null,{"$f":"IFERROR(DC57-DC56-DC58,0)","v":"00:00:00"},null,null,null,null,null,{"$f":"IFERROR(DI57-DI56-DI58,0)","v":"00:00:00"},null,null,null,null,null,{"$f":"IFERROR(DO57-DO56-DO58,0)","v":"00:00:00"},null,null,null,null,null,{"$f":"IFERROR(DU57-DU56-DU58,0)","v":"00:00:00"},null,null,null,null,null,{"$f":"IFERROR(EA57-EA56-EA58,0)","v":"00:00:00"},null,null,null,null,null,{"$f":"IFERROR(EG57-EG56-EG58,0)","v":"00:00:00"},null,null,null,null,null,{"$f":"IFERROR(EM57-EM56-EM58,0)","v":"00:00:00"},null,null,null,null,null,{"$f":"IFERROR(ES57-ES56-ES58,0)","v":"00:00:00"},null,null,null,null,null,{"$f":"IFERROR(EY57-EY56-EY58,0)","v":"00:00:00"},null,null,null,null,null,{"$f":"IFERROR(FE57-FE56-FE58,0)","v":"00:00:00"},null,null,null,null,null,{"$f":"IFERROR(FK57-FK56-FK58,0)","v":"00:00:00"},null,null,null,null,null,{"$f":"IFERROR(FQ57-FQ56-FQ58,0)","v":"00:00:00"},null,null,null,null,null,{"$f":"IFERROR(FW57-FW56-FW58,0)","v":"00:00:00"},null,null,null,null,null,{"$f":"IFERROR(GC57-GC56-GC58,0)","v":"00:00:00"},null,null,null,null,null,{"$f":"IFERROR(GI57-GI56-GI58,0)","v":"00:00:00"},null,null,null,null,null,{"$f":"IFERROR(GO57-GO56-GO58,0)","v":"00:00:00"},null,null,null,null,null,{"$f":"IFERROR(GU57-GU56-GU58,0)","v":"00:00:00"},null,null,null,null,null,{"$f":"IFERROR(HA57-HA56-HA58,0)","v":"00:00:00"},null,null,null,null,null,null,null,null,null,null,null,null,null,null,null,null,null,null,null,null,null,null,null,{"$f":"SUM(AC59:HE59)","v":0}]
[null,null,null,null,null,null,null,null,null,null,null,null,null,null,null,null,null,null,null,null,null,null,null,null,"пр.",null,null,null,null,null,null,null,null,null,null,null,null,null,null,null,null,null,null,null,null,null,null,null,null,null,null,null,null,null,null,null,null,null,null,null,null,null,null,null,null,null,null,null,null,null,null,null,null,null,null,null,null,null,null,null,null,null,null,null,null,null,null,null,null,null,null,null,null,null,null,null,null,null,null,null,null,null,null,null,null,null,null,null,null,null,null,null,null,null,null,null,null,null,null,null,null,null,null,null,null,null,null,null,null,null,null,null,null,null,null,null,null,null,null,null,null,null,null,null,null,null,null,null,null,null,null,null,null,null,null,null,null,null,null,null,null,null,null,null,null,null,null,null,null,null,null,null,null,null,null,null,null,null,null,null,null,null,null,null,null,null,null,null,null,null,null,null,null,null,null,null,null,null,null,null,null,null,null,null,null,null,null,null,null,null,null,null,null,null,null,null,null,null,null,null,null,null,null,null,null,null,null,null,null,null,null,null,{"$f":"SUM(AC60:HF60)","v":"00:00:00"}]
[]
[null,7,null,null,null,"Алексеева Р.И., котролёр-посадчик аттракциона",null,null,null,null,null,null,null,null,null,null,null,null,null,null,null,null,null,null,1,null,null,null,null,null,null,null,null,null,"Р",null,null,null,null,null,null,null,null,null,null,null,"Р",null,null,null,null,null,null,null,null,null,null,null,"Р",null,null,null,null,null,null,null,null,null,null,null,"Р",null,null,null,null,null,null,null,null,null,null,null,"Р",null,null,null,null,null,null,null,null,null,null,null,"Р",null,null,null,null,null,null,null,null,null,null,null,"Р",null,null,null,null,null,null,null,null,null,null,null,"Р",null,null,null,null,null,null,null,null,null,null,null,"Р",null,null,null,null,null,null,null,null,null,null,null,"Р",null,null,null,null,null,null,null,null,null,null,null,"Р",null,null,null,null,null,null,null,null,null,null,null,"Р",null,null,null,null,null,null,null,null,null,null,null,"Р",null,null,null,null,null,null,null,null,null,null,null,"Р",null,null,null,null,null,null,null,null,null,null,null,"Р",null,null,null,null,null,null,null,null,null,null,null,"Р",null,null,null,null,null,null,null,null,null,null,null,null,null,null,null,null,null,{"$f":"SUM(IFERROR(AC63:HF63-AC62:HF62-AC64:HF64,0))","v":0},{"$f":"VLOOKUP($HY$22,'[5]производственный календарь '!$B$2:$D$13,3,0)","v":21},{"$f":"VLOOKUP($HY$22,'[5]производственный календарь '!$B$2:$D$13,2,0)","v":167}]
[null,null,null,null,null,null,null,null,null,null,null,null,null,null,null,null,null,null,null,null,null,null,null,null,null,null,null,null,null,null,null,null,null,null,"Р",null,null,null,null,null,null,null,null,null,null,null,"Р",null,null,null,null,null,null,null,null,null,null,null,"Р",null,null,null,null,null,null,null,null,null,null,null,"Р",null,null,null,null,null,null,null,null,null,null,null,"Р",null,null,null,null,null,null,null,null,null,null,null,"Р",null,null,null,null,null,null,null,null,null,null,null,"Р",null,null,null,null,null,null,null,null,null,null,null,"Р",null,null,null,null,null,null,null,null,null,null,null,"Р",null,null,null,null,null,null,null,null,null,null,null,"Р",null,null,null,null,null,null,null,null,null,null,null,"Р",null,null,null,null,null,null,null,null,null,null,null,"Р",null,null,null,null,null,null,null,null,null,null,null,"Р",null,null,null,null,null,null,null,null,null,null,null,"Р",null,null,null,null,null,null,null,null,null,null,null,"Р"]
[null,null,null,null,null,null,null,null,null,null,null,null,null,null,null,null,null,null,null,null,null,null,null,null,"обед"]
[null,null,null,null,null,null,null,null,null,null,null,null,null,null,null,null,null,null,null,null,null,null,null,null,"р.д.",null,null,null,{"$f":"IFERROR(AC63-AC62-AC64,0)","v":"00:00:00"},null,null,null,null,null,{"$f":"IFERROR(AI63-AI62-AI64,0)","v":"00:00:00"},null,null,null,null,null,{"$f":"IFERROR(AO63-AO62-AO64,0)","v":"00:00:00"},null,null,null,null,null,{"$f":"IFERROR(AU63-AU62-AU64,0)","v":"00:00:00"},null,null,null,null,null,{"$f":"IFERROR(BA63-BA62-BA64,0)","v":"00:00:00"},null,null,null,null,null,{"$f":"IFERROR(BG63-BG62-BG64,0)","v":"00:00:00"},null,null,null,null,null,{"$f":"IFERROR(BM63-BM62-BM64,0)","v":"00:00:00"},null,null,null,null,null,{"$f":"IFERROR(BS63-BS62-BS64,0)","v":"00:00:00"},null,null,null,null,null,{"$f":"IFERROR(BY63-BY62-BY64,0)","v":"00:00:00"},null,null,null,null,null,{"$f":"IFERROR(CE63-CE62-CE64,0)","v":"00:00:00"},null,null,null,null,null,{"$f":"IFERROR(CK63-CK62-CK64,0)","v":"00:00:00"},null,null,null,null,null,{"$f":"IFERROR(CQ63-CQ62-CQ64,0)","v":"00:00:00"},null,null,null,null,null,{"$f":"IFERROR(CW63-CW62-CW64,0)","v":"00:00:00"},null,null,null,null,null,{"$f":"IFERROR(DC63-DC62-DC64,0)","v":"00:00:00"},null,null,null,null,null,{"$f":"IFERROR(DI63-DI62-DI64,0)","v":"00:00:00"},null,null,null,null,null,{"$f":"IFERROR(DO63-DO62-DO64,0)","v":"00:00:00"},null,null,null,null,null,{"$f":"IFERROR(DU63-DU62-DU64,0)","v":"00:00:00"},null,null,null,null,null,{"$f":"IFERROR(EA63-EA62-EA64,0)","v":"00:00:00"},null,null,null,null,null,{"$f":"IFERROR(EG63-EG62-EG64,0)","v":"00:00:00"},null,null,null,null,null,{"$f":"IFERROR(EM63-EM62-EM64,0)","v":"00:00:00"},null,null,null,null,null,{"$f":"IFERROR(ES63-ES62-ES64,0)","v":"00:00:00"},null,null,null,null,null,{"$f":"IFERROR(EY63-EY62-EY64,0)","v":"00:00:00"},null,null,null,null,null,{"$f":"IFERROR(FE63-FE62-FE64,0)","v":"00:00:00"},null,null,null,null,null,{"$f":"IFERROR(FK63-FK62-FK64,0)","v":"00:00:00"},null,null,null,null,null,{"$f":"IFERROR(FQ63-FQ62-FQ64,0)","v":"00:00:00"},null,null,null,null,null,{"$f":"IFERROR(FW63-FW62-FW64,0)","v":"00:00:00"},null,null,null,null,null,{"$f":"IFERROR(GC63-GC62-GC64,0)","v":"00:00:00"},null,null,null,null,null,{"$f":"IFERROR(GI63-GI62-GI64,0)","v":"00:00:00"},null,null,null,null,null,{"$f":"IFERROR(GO63-GO62-GO64,0)","v":"00:00:00"},null,null,null,null,null,{"$f":"IFERROR(GU63-GU62-GU64,0)","v":"00:00:00"},null,null,null,null,null,{"$f":"IFERROR(HA63-HA62-HA64,0)","v":"00:00:00"},null,null,null,null,null,null,null,null,null,null,null,null,null,null,null,null,null,null,null,null,null,null,null,{"$f":"SUM(AC65:HE65)","v":0}]
[null,null,null,null,null,null,null,null,null,null,null,null,null,null,null,null,null,null,null,null,null,null,null,null,"пр."]
[]
[null,null,null,null,null,null,null,null,null,null,null,null,null,null,null,null,"С графиком ознакомлен(а):"]
[]
[null,null,null,null,null,null,null,null,null,null,null,null,null,null,null,null,1]
[null,null,null,null,null,null,null,null,null,null,null,null,null,null,null,null,2,null,null,null,null,null,null,null,null,null,null,null,null,null,null,null,null,null,null,null,null,null,null,null,null,null,null,null,null,null,null,null,null,null,null,null,null,null,null,null,null,null,null,null,null,null,null,null,null,null,null,null,null,null,null,null,null,null,"\"___\"______________2020",null,null,null,null,null,null,null,null,null,null,null,null,null,null,null,null,null,null,null,null,null,null,null,null,null,null,null,null,null,null,null,null,null,null,null,null,null,null,null,null,null,null,null,null,null,null,null,null,null,null,null,null,null,null,null,null,null,null,null,null,null,null,null,null,null,null,null,null,null,null,null,null,null,null,null,null,null,null,null,null,null,null,null,null,"в июне Р должна стоять ТУТ"]
[null,null,null,null,null,null,null,null,null,null,null,null,null,null,null,null,3,null,null,null,null,null,null,null,null,null,null,null,null,null,null,null,null,null,null,null,null,null,null,null,null,null,null,null,null,null,null,null,null,null,null,null,null,null,null,null,null,null,null,null,null,null,null,null,null,null,null,null,null,null,null,null,null,null,"\"___\"______________2020"]
[null,null,null,null,null,null,null,null,null,null,null,null,null,null,null,null,4,null,null,null,null,null,null,null,null,null,null,null,null,null,null,null,null,null,null,null,null,null,null,null,null,null,null,null,null,null,null,null,null,null,null,null,null,null,null,null,null,null,null,null,null,null,null,null,null,null,null,null,null,null,null,null,null,null,"\"___\"______________2020"]
[null,null,null,null,null,null,null,null,null,null,null,null,null,null,null,null,5,null,null,null,null,null,null,null,null,null,null,null,null,null,null,null,null,null,null,null,null,null,null,null,null,null,null,null,null,null,null,null,null,null,null,null,null,null,null,null,null,null,null,null,null,null,null,null,null,null,null,null,null,null,null,null,null,null,"\"___\"______________2020",null,null,null,null,null,null,null,null,null,null,null,null,null,null,null,null,null,null,null,null,null,null,null,null,null,null,null,null,null,null,null,null,null,null,null,null,null,null,null,"при смене месяца ( в зависимости от кол-ва дней в месяце) шаг с нечётного переходит на чётный"]
[null,null,null,null,null,null,null,null,null,null,null,null,null,null,null,null,6,null,null,null,null,null,null,null,null,null,null,null,null,null,null,null,null,null,null,null,null,null,null,null,null,null,null,null,null,null,null,null,null,null,null,null,null,null,null,null,null,null,null,null,null,null,null,null,null,null,null,null,null,null,null,null,null,null,"\"___\"______________2020"]
[null,null,null,null,null,null,null,null,null,null,null,null,null,null,null,null,7,null,null,null,null,null,null,null,null,null,null,null,null,null,null,null,null,null,null,null,null,null,null,null,null,null,null,null,null,null,null,null,null,null,null,null,null,null,null,null,null,null,null,null,null,null,null,null,null,null,null,null,null,null,null,null,null,null,"\"___\"______________2020"]
[null,null,null,null,null,null,null,null,null,null,null,null,null,null,null,null,8,null,null,null,null,null,null,null,null,null,null,null,null,null,null,null,null,null,null,null,null,null,null,null,null,null,null,null,null,null,null,null,null,null,null,null,null,null,null,null,null,null,null,null,null,null,null,null,null,null,null,null,null,null,null,null,null,null,"\"___\"______________2020"]
[null,null,null,null,null,null,null,null,null,null,null,null,null,null,null,null,9,null,null,null,null,null,null,null,null,null,null,null,null,null,null,null,null,null,null,null,null,null,null,null,null,null,null,null,null,null,null,null,null,null,null,null,null,null,null,null,null,null,null,null,null,null,null,null,null,null,null,null,null,null,null,null,null,null,"\"___\"______________2020"]
[null,null,null,null,null,null,null,null,null,null,null,null,null,null,null,null,10,null,null,null,null,null,null,null,null,null,null,null,null,null,null,null,null,null,null,null,null,null,null,null,null,null,null,null,null,null,null,null,null,null,null,null,null,null,null,null,null,null,null,null,null,null,null,null,null,null,null,null,null,null,null,null,null,null,"\"___\"______________2020"]
[null,null,null,null,null,null,null,null,null,null,null,null,null,null,null,null,11,null,null,null,null,null,null,null,null,null,null,null,null,null,null,null,null,null,null,null,null,null,null,null,null,null,null,null,null,null,null,null,null,null,null,null,null,null,null,null,null,null,null,null,null,null,null,null,null,null,null,null,null,null,null,null,null,null,"\"___\"______________2020"]
[null,null,null,null,null,null,null,null,null,null,null,null,null,null,null,null,12,null,null,null,null,null,null,null,null,null,null,null,null,null,null,null,null,null,null,null,null,null,null,null,null,null,null,null,null,null,null,null,null,null,null,null,null,null,null,null,null,null,null,null,null,null,null,null,null,null,null,null,null,null,null,null,null,null,"\"___\"______________2020"]
[]
[null,null,null,null,null,null,null,null,null,null,null,null,null,null,null,null,null,null,null,null,null,null,null,null,null,null,null,null,null,null,null,null,null,null,null,null,null,null,null,null,null,null,null,null,null,null,null,null,null,null,null,null,null,null,null,null,null,null,null,null,null,null,null,null,null,null,null,null,null,null,null,null,null,null,null,null,null,null,null,null,null,null,null,null,null,null,null,null,null,null,null,null,null,null,null,null,null,null,null,null,null,null,null,null,null,null,null,null,null,null,null,null,null,null,null,null,null,null,null,null,null,null,null,null,null,null,null,null,null,null,null,null,null,null,null,null,null,null,null,null,null,null,null,null,null,null,null,null,null,null,null,null,null,null,null,null,null,null,null,null,null,null,null,null,null,null,"в июне Р должна стоять ТУТ"]
[]
[]
[]
[]
[null,null,null,null,null,null,null,null,null,null,null,null,null,null,null,null,null,null,null,null,null,null,null,null,null,null,null,null,null,null,null,null,null,null,null,null,null,null,null,null,null,null,null,null,null,null,null,null,null,null,null,null,null,null,null,null,null,null,null,null,null,null,null,null,null,null,null,null,null,null,null,null,null,null,null,null,null,null,null,null,null,null,null,null,null,null,null,null,null,null,null,null,null,null,null,null,null,null,null,null,null,null,null,null,null,null,null,null,null,null,null,null,null,null,null,null,null,null,null,null,null,null,null,null,null,null,null,null,null,null,null,null,null,null,null,null,null,null,null,null,null,null,null,null,null,null,null,null,null,null,null,null,null,null,null,null,null,null,null,null,null,null,null,null,null,null,null,null,null,null,null,null,null,"в июне Р должна стоять ТУТ"]
[]
[]
[]
[]
[]
[null,null,null,null,null,null,null,null,null,null,null,null,null,null,null,null,null,null,null,null,null,null,null,null,null,null,null,null,null,null,null,null,null,null,null,null,null,null,null,null,null,null,null,null,null,null,null,null,null,null,null,null,null,null,null,null,null,null,null,null,null,null,null,null,null,null,null,null,null,null,null,null,null,null,null,null,null,null,null,null,null,null,null,null,null,null,null,null,null,null,null,null,null,null,null,null,null,null,null,null,null,null,null,null,null,null,null,null,null,null,null,null,null,null,null,null,null,null,null,null,null,null,null,null,null,null,null,null,null,null,null,null,null,null,null,null,null,null,null,null,null,null,null,null,null,null,null,null,null,null,null,null,null,null,null,null,null,null,null,null,null,null,null,null,null,null,null,null,null,null,"в июне Р должна стоять ТУТ"]